Workbook

Sheet 1TA
A1: MODELLO | V1: LEGENDA
A2: N° | B2: Alunno | C2: Presente | D2: Sex | E2: Anno | F2: Peso | G2: Statura | H2: BMI | I2: S/D | K2: S/N/I | N2: Flessibilità | O2: Ldf | P2: Velocità | Q2: Note | S2: Sport | V2: COLONNA | W2: FUNZIONE | Y2: SIMBOLO
A3: 1 | B3: BAGGIO CRISTIAN | C3: X | D3: M | E3: 2003 | F3: 71.6 | H3: =IF(C3 = "X",F3/(G3/100)^2,"") ->  | I3: D | K3: I | N3: 6 | O3: 185 | P3: 544 | Q3: =IF(AND(C3<>"X",B3<>""),"Assente",IF(AND(B3="",C3="X"),"??","")) ->  | R3: =IF(AND(C3="X",D3="M"),IF(H3<>"",IF(H3<20.7,"Sottopeso",IF(H3>27.8,"Sovrappeso","Normopeso")),""),IF(AND(C3="X",D3="F"),IF(H3<>"",IF(H3<19.1,"Sottopeso",IF(H3>27.3,"Sovrappeso","Normopeso")),""),"")) ->  | V3: I-J | W3: MANCINO O DESTRO | Y3: S/D
A4: 2 | B4: BARTOCCI MATTEO | D4: M | E4: 2001 | H4: =IF(C4 = "X",F4/(G4/100)^2,"") ->  | I4: D | Q4: =IF(AND(C4<>"X",B4<>""),"Assente",IF(AND(B4="",C4="X"),"??","")) -> Assente | R4: =IF(AND(C4="X",D4="M"),IF(H4<>"",IF(H4<20.7,"Sottopeso",IF(H4>27.8,"Sovrappeso","Normopeso")),""),IF(AND(C4="X",D4="F"),IF(H4<>"",IF(H4<19.1,"Sottopeso",IF(H4>27.3,"Sovrappeso","Normopeso")),""),"")) ->  | V4: K-L-M | W4: SPORTIVO - NON SPORTIVO - INTERMEDIO | Y4: S/N/I
A5: 3 | B5: CONTU FLAMINIA | C5: X | D5: F | E5: 2002 | F5: 43.5 | I5: D | K5: N | N5: 1 | O5: - | P5: - | V5: O | W5: SALTO IN LUNGO DA FERMO | Y5: NUMERICO
A6: 4 | B6: DORE DENNIS | D6: M | E6: 2002 | I6: S | Q6: Assente | V6: SPORT | W6: ALUNNO SELEZIONATO PER SQUADRA | Y6: X
A7: 5 | B7: FALCONE SIMONE | C7: X | D7: M | E7: 2002 | F7: 60 | I7: D | K7: I | N7: -7 | O7: 200 | P7: 506
A8: 6 | B8: FIORELLI LORENZO | C8: X | D8: M | E8: 2002 | F8: 56.9 | I8: D | K8: S | N8: -13 | O8: 163 | P8: 525 | V8: TUTTI I DATI VANNO INSERITI IN FORMATO CAPSLOCK (MAIUSCOLO)
A9: 7 | B9: HAREB MHD ABDUL | C9: X | D9: M | E9: 2001 | F9: 66.2 | I9: D | K9: I | N9: -6 | O9: 236 | P9: 466
A10: 8 | B10: IEBBA FEDERICO | C10: X | D10: M | E10: 2002 | F10: 66.8 | I10: D | K10: N | N10: -17 | O10: 171 | P10: 600
A11: 9 | B11: INGOGLIA LUCA | D11: M | E11: 2002 | I11: S | Q11: Assente
A12: 10 | B12: LAPICIUS OCTAVIAN | C12: X | D12: M | E12: 2001 | F12: 62.9 | I12: D | K12: S | N12: 16 | O12: 209 | P12: 503
A13: 11 | B13: LORENZI MATTEO | C13: X | D13: M | E13: 2002 | F13: 72.4 | I13: S | K13: S | N13: -16 | O13: 186 | P13: 510
A14: 12 | B14: MARCELLA VINCENZO | C14: X | D14: M | E14: 2002 | F14: 67.7 | I14: S | K14: S | N14: -11 | O14: 212 | P14: 456
A15: 13 | B15: MONALDO FEDERICO | C15: X | D15: M | E15: 2002 | F15: 81.9 | I15: D | K15: S | N15: 5 | O15: 176 | P15: 491
A16: 14 | B16: PACIOTTI DANIEL | D16: M | E16: 2002 | I16: D | Q16: Assente
A17: 15 | B17: PALERMO ANDREA | C17: X | D17: M | E17: 2002 | F17: 53.1 | I17: D | K17: N | N17: -15 | O17: 225 | P17: 469
A18: 16 | B18: PASTORIN LAWRENCE IVAN | C18: X | D18: M | E18: 2003 | F18: 57.5 | I18: D | K18: N | N18: 8 | O18: 212 | P18: 482
A19: 17 | B19: RUELLO NICOLÒ | D19: M | E19: 2000 | Q19: Assente
A20: 18 | B20: SCIPIONI SIMONE | D20: M | E20: 2001 | I20: D | Q20: Assente
A21: 19 | B21: SIUM MOHAMMED | C21: X | D21: M | E21: 2001 | F21: 54.5 | I21: D | K21: N | N21: 2 | O21: 273 | P21: 441
A22: 20 | B22: TANARA MATTIA | C22: X | D22: M | E22: 2002 | F22: 74.6 | I22: D | K22: I | N22: 7 | O22: 170 | P22: 535
A23: 21 | B23: TENSI FEDERICO | C23: X | D23: M | E23: 2002 | F23: 76.2 | I23: D | K23: N | N23: -22 | O23: - | P23: -
A24: 22 | B24: ULLAH JAHID | D24: M | E24: 2000 | I24: D | Q24: Assente
A25: 23 | B25: ZANNINO FABIO | C25: X | D25: M | E25: 2002 | F25: 71.5 | I25: D | K25: I | N25: -13 | O25: 166 | P25: 559
A26: 24 | B26: SOCA VALERIA | D26: F | E26: 1999 | Q26: Assente
A27: 25 | B27: MARCU CIOBANU | C27: X | D27: M | E27: 2002 | F27: 92.9 | I27: D | K27: N | N27: 2 | O27: 173 | P27: 594
A28: 26
A29: 27
A30: 28
A31: 29
A32: 30
B35: Alunni : | C35: =COUNTIF(B3:B32,"<>"&"") -> 26 | I35: D | J35: S | K35: S | L35: N | M35: I
B36: Media | C36: =COUNTIF(C3:C32,"X")/C35 -> 0.6538461538 | D36: =(COUNTIFS(D3:D32,"M",C3:C32,"X")+COUNTIFS(D3:D32,"F",C3:C32,"X"))/C39 -> 1 | E36: =AVERAGE(E3:E32) -> 2001.6 | F36: =AVERAGEIFS(F3:F32,C3:C32,"X") -> 66.48235294 | G36: =AVERAGEIFS(G3:G32,C3:C32,"X") ->  | H36: =AVERAGEIFS(H3:H32,C3:C32,"X") ->  | I36: =(COUNTIFS(I3:I32,"D",C3:C32,"X")/C39) -> 0.8823529412 | J36: =(COUNTIFS(I3:I32,"S",C3:C32,"X")/C39) -> 0.1176470588 | K36: =(COUNTIFS(K3:K32,"S",C3:C32,"X")/C39) -> 0.2941176471 | L36: =(COUNTIFS(K3:K32,"N",C3:C32,"X")/C39) -> 0.4117647059 | M36: =(COUNTIFS(K3:K32,"I",C3:C32,"X")/C39) -> 0.2941176471 | N36: =AVERAGEIFS(N3:N32,C3:C32,"X") -> -4.294117647 | O36: =AVERAGEIFS(O3:O32,C3:C32,"X") -> 197.1333333 | P36: =AVERAGEIFS(P3:P32,C3:C32,"X") -> 512.0666667
B37: Media maschi | C37: =COUNTIFS(C3:C32,"X",D3:D32,"M")/C35 -> 0.6153846154 | D37: =COUNTIFS(D3:D32,"M",C3:C32,"X")/C39 -> 0.9411764706 | E37: =AVERAGEIFS(E3:E32,C3:C32,"X",D3:D32,"M") -> 2001.9375 | F37: =AVERAGEIFS(F3:F32,C3:C32,"X",D3:D32,"M") -> 67.91875 | G37: =AVERAGEIFS(G3:G32,C3:C32,"X",D3:D32,"M") ->  | H37: =AVERAGEIFS(H3:H32,C3:C32,"X",D3:D32,"M") ->  | I37: =(COUNTIFS(I3:I32,"D",C3:C32,"X",D3:D32,"M")/COUNTIFS(D3:D32,"M",C3:C32,"X")) -> 0.875 | J37: =(COUNTIFS(I3:I32,"S",C3:C32,"X",D3:D32,"M")/COUNTIFS(D3:D32,"M",C3:C32,"X")) -> 0.125 | K37: =(COUNTIFS(K3:K32,"S",C3:C32,"X",D3:D32,"M")/COUNTIFS(D3:D32,"M",C3:C32,"X")) -> 0.3125 | L37: =(COUNTIFS(K3:K32,"N",C3:C32,"X",D3:D32,"M")/COUNTIFS(D3:D32,"M",C3:C32,"X")) -> 0.375 | M37: =(COUNTIFS(K3:K32,"I",C3:C32,"X",D3:D32,"M")/COUNTIFS(D3:D32,"M",C3:C32,"X")) -> 0.3125 | N37: =AVERAGEIFS(N3:N32,C3:C32,"X",D3:D32,"M") -> -4.625 | O37: =AVERAGEIFS(O3:O32,C3:C32,"X",D3:D32,"M") -> 197.1333333 | P37: =AVERAGEIFS(P3:P32,C3:C32,"X",D3:D32,"M") -> 512.0666667
B38: Media femmine | C38: =COUNTIFS(C4:C32,"X",D4:D32,"F")/C35 -> 0.03846153846 | D38: =COUNTIFS(D3:D32,"F",C3:C32,"X")/C39 -> 0.05882352941 | E38: =AVERAGEIFS(E3:E32,C3:C32,"X",D3:D32,"F") -> 2002 | F38: =AVERAGEIFS(F3:F32,C3:C32,"X",D3:D32,"F") -> 43.5 | G38: =AVERAGEIFS(G3:G32,C3:C32,"X",D3:D32,"F") ->  | H38: =AVERAGEIFS(H3:H32,C3:C32,"X",D3:D32,"F") ->  | I38: =(COUNTIFS(I3:I32,"D",C3:C32,"X",D3:D32,"F")/COUNTIFS(D3:D32,"F",C3:C32,"X")) -> 1 | J38: =(COUNTIFS(I3:I32,"S",C3:C32,"X",D3:D32,"F")/COUNTIFS(D3:D32,"F",C3:C32,"X")) -> 0 | K38: =(COUNTIFS(K3:K32,"S",C3:C32,"X",D3:D32,"F")/COUNTIFS(D3:D32,"F",C3:C32,"X")) -> 0 | L38: =(COUNTIFS(K3:K32,"N",C3:C32,"X",D3:D32,"F")/COUNTIFS(D3:D32,"F",C3:C32,"X")) -> 1 | M38: =(COUNTIFS(K3:K32,"I",C3:C32,"X",D3:D32,"F")/COUNTIFS(D3:D32,"F",C3:C32,"X")) -> 0 | N38: =AVERAGEIFS(N3:N32,C3:C32,"X",D3:D32,"F") -> 1 | O38: =AVERAGEIFS(O3:O32,C3:C32,"X",D3:D32,"F") ->  | P38: =AVERAGEIFS(P3:P32,C3:C32,"X",D3:D32,"F") -> 
B39: Presenti | C39: =COUNTIF(C3:C32,"X") -> 17 | N39: Record
N40: =MAX(N3:N32) -> 16 | O40: =MAX(O3:O32) -> 273 | P40: =MIN(P3:P32) -> 441
N41: =INDEX(B3:B32,MATCH(N40,N3:N32,0),1) -> LAPICIUS OCTAVIAN | O41: =INDEX(B3:B32,MATCH(O40,O3:O32,0),1) -> SIUM MOHAMMED | P41: =INDEX(B3:B32,MATCH(P40,P3:P32,0),1) -> SIUM MOHAMMED

Sheet 1TB
A1: MODELLO | V1: LEGENDA
A2: N° | B2: Alunno | C2: Presente | D2: Sex | E2: Anno | F2: Peso | G2: Statura | H2: BMI | I2: S/D | K2: S/N/I | N2: Flessibilità | O2: Ldf | P2: Velocità | Q2: Note | S2: Sport | V2: COLONNA | W2: FUNZIONE | Y2: SIMBOLO
A3: 1 | B3: CERAMICOLA KYLE | H3: =IF(C3 = "X",F3/(G3/100)^2,"") ->  | Q3: =IF(AND(C3<>"X",B3<>""),"Assente",IF(AND(B3="",C3="X"),"??","")) -> Assente | R3: =IF(AND(C3="X",D3="M"),IF(H3<>"",IF(H3<20.7,"Sottopeso",IF(H3>27.8,"Sovrappeso","Normopeso")),""),IF(AND(C3="X",D3="F"),IF(H3<>"",IF(H3<19.1,"Sottopeso",IF(H3>27.3,"Sovrappeso","Normopeso")),""),"")) ->  | V3: I-J | W3: MANCINO O DESTRO | Y3: S/D
A4: 2 | B4: CONTI ALESSIO | C4: X | D4: M | E4: 2002 | F4: 57.6 | G4: 172 | H4: 19.46998378 | I4: D | K4: I | N4: -22 | O4: 157 | P4: 538 | R4: Sottopeso | V4: K-L-M | W4: SPORTIVO - NON SPORTIVO - INTERMEDIO | Y4: S/N/I
A5: 3 | B5: DAOU CARLO | C5: X | D5: M | E5: 2002 | F5: 112.3 | G5: 180 | H5: 34.66049383 | I5: D | K5: I | N5: 2 | O5: 167 | P5: 618 | R5: Sovrappeso | V5: O | W5: SALTO IN LUNGO DA FERMO | Y5: NUMERICO
A6: 4 | B6: DE NAPOLI MATTIA | C6: X | D6: M | E6: 2002 | F6: 49 | G6: 166 | H6: 17.78197126 | I6: D | K6: I | N6: 2 | O6: 205 | P6: 481 | R6: Sottopeso | V6: SPORT | W6: ALUNNO SELEZIONATO PER SQUADRA | Y6: X
A7: 5 | B7: DI PORTO DAVIDE | Q7: Assente
A8: 6 | B8: DRAGOS DAVIDE MIHAI | C8: X | D8: M | E8: 2002 | F8: 79.8 | G8: 178 | H8: 25.18621386 | I8: D | K8: I | N8: -12 | O8: 174 | P8: 507 | R8: Normopeso | V8: TUTTI I DATI VANNO INSERITI IN FORMATO CAPSLOCK (MAIUSCOLO)
A9: 7 | B9: ELSADI MAGDI MAHER SARAGELDIN SKARKIA | C9: X | D9: M | E9: 2001 | F9: 85.3 | G9: 170 | H9: 29.51557093 | I9: D | K9: I | N9: 0 | O9: 174 | P9: 541 | R9: Sovrappeso
A10: 8 | B10: IURICH NICOLAS | C10: X | D10: M | E10: 2002 | F10: 47.6 | G10: 165 | H10: 17.48393021 | I10: S | K10: S | N10: 0 | O10: 229 | P10: 463 | R10: Sottopeso
A11: 9 | B11: LANZI RICCARDO | C11: X | D11: M | E11: 2002 | F11: 55.6 | G11: 168 | H11: 19.69954649 | I11: D | K11: I | N11: 3 | O11: 230 | P11: 456 | R11: Sottopeso
A12: 10 | B12: LIQUORI ALESSANDRO | C12: X | D12: M | E12: 2002 | F12: 56.9 | G12: 151 | H12: 24.95504583 | I12: D | K12: I | N12: 1 | O12: 173 | P12: 537 | R12: Normopeso
A13: 11 | B13: MAISANO | C13: X | D13: M | E13: 2002 | F13: 62.5 | G13: 171 | H13: 21.37409801 | I13: D | K13: I | N13: -5 | O13: 217 | P13: 443 | R13: Normopeso
A14: 12 | B14: MALAFARINA | C14: X | D14: M | E14: 2001 | F14: 64.3 | G14: 172 | H14: 21.73472147 | I14: D | K14: I | N14: -2 | O14: 199 | P14: 525 | R14: Normopeso
A15: 13 | B15: MONTELLI | C15: X | D15: M | E15: 2001 | F15: 46.1 | G15: 167 | H15: 16.52981462 | I15: D | K15: I | N15: -6 | O15: 160 | P15: - | R15: Sottopeso
A16: 14 | B16: PERUGINI | C16: X | D16: M | E16: 2002 | F16: 61.2 | G16: 182 | H16: 18.47602947 | I16: D | K16: I | N16: -25 | O16: 190 | P16: 469 | R16: Sottopeso
A17: 15 | B17: SAMORI | C17: X | D17: M | E17: 2002 | F17: 67.6 | G17: 181 | H17: 20.63429077 | I17: D | K17: S | N17: -31 | O17: 181 | P17: 500 | R17: Sottopeso
A18: 16 | B18: SCANU | C18: X | D18: M | E18: 2002 | F18: 50.6 | G18: 169 | H18: 17.71646651 | I18: D | K18: I | N18: 2 | O18: 226 | P18: 490 | R18: Sottopeso
A19: 17 | B19: SCARANTINO | C19: X | D19: M | E19: 2002 | F19: 73.8 | G19: 173 | H19: 24.65835811 | I19: D | K19: I | N19: 4 | O19: 198 | P19: 438 | R19: Normopeso
A20: 18 | B20: TAMANTINO | D20: M | Q20: Assente
A21: 19 | B21: TERRACINA | D21: M | Q21: Assente
A22: 20 | B22: VASTOLA | C22: X | E22: 2002 | F22: 88.8 | G22: 173 | H22: 29.67021952 | I22: D | K22: I | N22: 2 | O22: 188 | P22: 544
A23: 21
A24: 22
A25: 23
A26: 24
A27: 25
A28: 26
A29: 27
A30: 28
A31: 29
A32: 30
B35: Alunni : | C35: =COUNTIF(B3:B32,"<>"&"") -> 20 | I35: D | J35: S | K35: S | L35: N | M35: I
B36: Media | C36: =COUNTIF(C3:C32,"X")/C35 -> 0.8 | D36: =(COUNTIFS(D3:D32,"M",C3:C32,"X")+COUNTIFS(D3:D32,"F",C3:C32,"X"))/C39 -> 0.9375 | E36: =AVERAGE(E3:E32) -> 2001.8125 | F36: =AVERAGEIFS(F3:F32,C3:C32,"X") -> 66.1875 | G36: =AVERAGEIFS(G3:G32,C3:C32,"X") -> 171.125 | H36: =AVERAGEIFS(H3:H32,C3:C32,"X") -> 22.47167217 | I36: =(COUNTIFS(I3:I32,"D",C3:C32,"X")/C39) -> 0.9375 | J36: =(COUNTIFS(I3:I32,"S",C3:C32,"X")/C39) -> 0.0625 | K36: =(COUNTIFS(K3:K32,"S",C3:C32,"X")/C39) -> 0.125 | L36: =(COUNTIFS(K3:K32,"N",C3:C32,"X")/C39) -> 0 | M36: =(COUNTIFS(K3:K32,"I",C3:C32,"X")/C39) -> 0.875 | N36: =AVERAGEIFS(N3:N32,C3:C32,"X") -> -5.4375 | O36: =AVERAGEIFS(O3:O32,C3:C32,"X") -> 191.75 | P36: =AVERAGEIFS(P3:P32,C3:C32,"X") -> 503.3333333
B37: Media maschi | C37: =COUNTIFS(C3:C32,"X",D3:D32,"M")/C35 -> 0.75 | D37: =COUNTIFS(D3:D32,"M",C3:C32,"X")/C39 -> 0.9375 | E37: =AVERAGEIFS(E3:E32,C3:C32,"X",D3:D32,"M") -> 2001.8 | F37: =AVERAGEIFS(F3:F32,C3:C32,"X",D3:D32,"M") -> 64.68 | G37: =AVERAGEIFS(G3:G32,C3:C32,"X",D3:D32,"M") -> 171 | H37: =AVERAGEIFS(H3:H32,C3:C32,"X",D3:D32,"M") -> 21.99176901 | I37: =(COUNTIFS(I3:I32,"D",C3:C32,"X",D3:D32,"M")/COUNTIFS(D3:D32,"M",C3:C32,"X")) -> 0.9333333333 | J37: =(COUNTIFS(I3:I32,"S",C3:C32,"X",D3:D32,"M")/COUNTIFS(D3:D32,"M",C3:C32,"X")) -> 0.06666666667 | K37: =(COUNTIFS(K3:K32,"S",C3:C32,"X",D3:D32,"M")/COUNTIFS(D3:D32,"M",C3:C32,"X")) -> 0.1333333333 | L37: =(COUNTIFS(K3:K32,"N",C3:C32,"X",D3:D32,"M")/COUNTIFS(D3:D32,"M",C3:C32,"X")) -> 0 | M37: =(COUNTIFS(K3:K32,"I",C3:C32,"X",D3:D32,"M")/COUNTIFS(D3:D32,"M",C3:C32,"X")) -> 0.8666666667 | N37: =AVERAGEIFS(N3:N32,C3:C32,"X",D3:D32,"M") -> -5.933333333 | O37: =AVERAGEIFS(O3:O32,C3:C32,"X",D3:D32,"M") -> 192 | P37: =AVERAGEIFS(P3:P32,C3:C32,"X",D3:D32,"M") -> 500.4285714
B38: Media femmine | C38: =COUNTIFS(C4:C32,"X",D4:D32,"F")/C35 -> 0 | D38: =COUNTIFS(D3:D32,"F",C3:C32,"X")/C39 -> 0 | E38: =AVERAGEIFS(E3:E32,C3:C32,"X",D3:D32,"F") ->  | F38: =AVERAGEIFS(F3:F32,C3:C32,"X",D3:D32,"F") ->  | G38: =AVERAGEIFS(G3:G32,C3:C32,"X",D3:D32,"F") ->  | H38: =AVERAGEIFS(H3:H32,C3:C32,"X",D3:D32,"F") ->  | I38: =(COUNTIFS(I3:I32,"D",C3:C32,"X",D3:D32,"F")/COUNTIFS(D3:D32,"F",C3:C32,"X")) ->  | J38: =(COUNTIFS(I3:I32,"S",C3:C32,"X",D3:D32,"F")/COUNTIFS(D3:D32,"F",C3:C32,"X")) ->  | K38: =(COUNTIFS(K3:K32,"S",C3:C32,"X",D3:D32,"F")/COUNTIFS(D3:D32,"F",C3:C32,"X")) ->  | L38: =(COUNTIFS(K3:K32,"N",C3:C32,"X",D3:D32,"F")/COUNTIFS(D3:D32,"F",C3:C32,"X")) ->  | M38: =(COUNTIFS(K3:K32,"I",C3:C32,"X",D3:D32,"F")/COUNTIFS(D3:D32,"F",C3:C32,"X")) ->  | N38: =AVERAGEIFS(N3:N32,C3:C32,"X",D3:D32,"F") ->  | O38: =AVERAGEIFS(O3:O32,C3:C32,"X",D3:D32,"F") ->  | P38: =AVERAGEIFS(P3:P32,C3:C32,"X",D3:D32,"F") -> 
B39: Presenti | C39: =COUNTIF(C3:C32,"X") -> 16 | N39: Record
N40: =MAX(N3:N32) -> 4 | O40: =MAX(O3:O32) -> 230 | P40: =MIN(P3:P32) -> 438
N41: =INDEX(B3:B32,MATCH(N40,N3:N32,0),1) -> SCARANTINO | O41: =INDEX(B3:B32,MATCH(O40,O3:O32,0),1) -> LANZI RICCARDO | P41: =INDEX(B3:B32,MATCH(P40,P3:P32,0),1) -> SCARANTINO

Sheet 1TC
A1: MODELLO | V1: LEGENDA
A2: N° | B2: Alunno | C2: Presente | D2: Sex | E2: Anno | F2: Peso | G2: Statura | H2: BMI | I2: S/D | K2: S/N/I | N2: Flessibilità | O2: Ldf | P2: Velocità | Q2: Note | S2: Sport | V2: COLONNA | W2: FUNZIONE | Y2: SIMBOLO
A3: 1 | B3: BUGDAY KIM EDWARD DE JESUS | C3: X | D3: M | E3: 2002 | F3: 80.7 | G3: 166 | H3: =IF(C3 = "X",F3/(G3/100)^2,"") -> 29.28581797 | I3: D | K3: S | N3: -9 | O3: 207 | P3: 535 | Q3: =IF(AND(C3<>"X",B3<>""),"Assente",IF(AND(B3="",C3="X"),"??","")) ->  | R3: =IF(AND(C3="X",D3="M"),IF(H3<>"",IF(H3<20.7,"Sottopeso",IF(H3>27.8,"Sovrappeso","Normopeso")),""),IF(AND(C3="X",D3="F"),IF(H3<>"",IF(H3<19.1,"Sottopeso",IF(H3>27.3,"Sovrappeso","Normopeso")),""),"")) -> Sovrappeso | V3: I-J | W3: MANCINO O DESTRO | Y3: S/D
A4: 2 | B4: CELLI MARTINA | C4: X | D4: F | E4: 2001 | F4: 59.6 | G4: 163 | H4: =IF(C4 = "X",F4/(G4/100)^2,"") -> 22.43215778 | I4: D | K4: I | N4: 13 | O4: 117 | P4: 629 | Q4: =IF(AND(C4<>"X",B4<>""),"Assente",IF(AND(B4="",C4="X"),"??","")) ->  | R4: =IF(AND(C4="X",D4="M"),IF(H4<>"",IF(H4<20.7,"Sottopeso",IF(H4>27.8,"Sovrappeso","Normopeso")),""),IF(AND(C4="X",D4="F"),IF(H4<>"",IF(H4<19.1,"Sottopeso",IF(H4>27.3,"Sovrappeso","Normopeso")),""),"")) -> Normopeso | V4: K-L-M | W4: SPORTIVO - NON SPORTIVO - INTERMEDIO | Y4: S/N/I
A5: 3 | B5: CESE RICCARDO | Q5: Assente | V5: O | W5: SALTO IN LUNGO DA FERMO | Y5: NUMERICO
A6: 4 | B6: COLUCCIA DAMIANO | C6: X | D6: M | E6: 2002 | F6: 75.3 | G6: 175 | H6: 24.5877551 | I6: S | K6: S | N6: 8 | O6: 213 | P6: 414 | R6: Normopeso | V6: SPORT | W6: ALUNNO SELEZIONATO PER SQUADRA | Y6: X
A7: 5 | B7: DAMBA AMARA | C7: X | D7: M | E7: 2002 | F7: 58.2 | G7: 167 | H7: 20.86844276 | I7: D | K7: S | N7: -12 | R7: Normopeso
A8: 6 | B8: DI GAETANO DARIO | C8: X | D8: M | E8: 2003 | F8: 84.4 | G8: 175 | H8: 27.55918367 | I8: D | K8: N | N8: -14 | O8: 172 | R8: Normopeso | V8: TUTTI I DATI VANNO INSERITI IN FORMATO CAPSLOCK (MAIUSCOLO)
A9: 7 | B9: DI TONDO LUCA | C9: X | D9: M | E9: 2003 | F9: 65 | G9: 177 | H9: 20.74755019 | I9: D | K9: S | N9: 0 | O9: 204 | P9: 493 | R9: Normopeso
A10: 8 | B10: DIVIZIA CLAUDIO | C10: X | D10: M | E10: 2003 | F10: 51.3 | G10: 170 | H10: 17.75086505 | I10: D | K10: I | N10: 2 | O10: 207 | P10: 580 | R10: Sottopeso
A11: 9 | B11: FERRANTE ROBERTO | C11: X | D11: M | E11: 2002 | F11: 62.3 | G11: 170 | H11: 21.55709343 | I11: D | K11: I | N11: 3 | O11: 203 | P11: 525 | R11: Normopeso
A12: 10 | B12: HOFFMANN FRANCESCO | C12: X | D12: M | E12: 2001 | F12: 64.3 | G12: 173 | H12: 21.48417922 | I12: D | K12: S | N12: -9 | O12: 222 | P12: 468 | R12: Normopeso
A13: 11 | B13: IANCU LUIGI GABRIEL | C13: X | D13: M | E13: 2002 | F13: 42.3 | G13: 158 | H13: 16.94439994 | I13: S | K13: S | N13: 0 | O13: 209 | P13: 454 | R13: Sottopeso
A14: 12 | B14: INCELLI CRISTIAN | D14: M | E14: 2000 | Q14: Assente
A15: 13 | B15: LAQUINDANUM BERNARD JR JUAN | C15: X | D15: M | E15: 2002 | F15: 47.6 | G15: 161 | H15: 18.36348906 | I15: D | K15: I | N15: 10 | O15: 244 | P15: 478 | R15: Sottopeso
A16: 14 | B16: LATTARI ANDREA | Q16: Assente
A17: 15 | B17: LUPI FEDERICA | P17: 567 | Q17: Assente
A18: 16 | B18: MARCHETTI LUKAS OLIVER | C18: X | D18: M | E18: 2001 | F18: 57 | G18: 174 | H18: 18.8267935 | I18: D | K18: N | N18: -14 | O18: 170 | P18: 545 | R18: Sottopeso
A19: 17 | B19: MARUCCI ANDREA | C19: X | D19: M | E19: 2002 | F19: 68.2 | G19: 180 | H19: 21.04938272 | I19: D | K19: S | N19: 6 | O19: 224 | P19: 490 | R19: Normopeso
A20: 18 | B20: NUNZI YURI | C20: X | D20: M | E20: 2002 | F20: 81 | G20: 184 | H20: 23.92485822 | I20: D | K20: I | N20: 1 | O20: 225 | P20: 488 | R20: Normopeso
A21: 19 | B21: PESCETELLI MANUEL | C21: X | D21: M | E21: 2002 | F21: 53.5 | G21: 172 | H21: 18.08409951 | I21: D | K21: S | N21: 4 | O21: 221 | R21: Sottopeso
A22: 20 | B22: PRASAD NAKUL | E22: 1999 | Q22: Assente
A23: 21 | B23: PUTELLI GUGLIELMO | C23: X | D23: M | E23: 2001 | F23: 68.7 | G23: 176 | H23: 22.17846074 | I23: D | K23: I | N23: -4 | O23: 194 | R23: Normopeso
A24: 22 | B24: SORDILLI EDOARDO | C24: X | D24: M | E24: 2002 | F24: 64 | G24: 165 | H24: 23.50780533 | I24: S | K24: S | N24: 1 | O24: 214 | P24: 515 | R24: Normopeso
A25: 23 | B25: VICANÒ GABRIEL | Q25: Assente
A26: 24 | B26: ABBATE MARTINA MARIA | C26: X | D26: F | E26: 2002 | F26: 55 | G26: 159 | H26: 21.75546853 | I26: S | K26: I | N26: -11 | O26: 157 | P26: 558 | R26: Normopeso
A27: 25 | B27: MATTEI LUCA | C27: X | D27: M | E27: 2002 | F27: 60.5 | G27: 178 | H27: 19.09481126 | I27: D | K27: I | N27: 2 | O27: 192 | P27: 502 | R27: Sottopeso
A28: 26
A29: 27
A30: 28
A31: 29
A32: 30
B35: Alunni : | C35: =COUNTIF(B3:B32,"<>"&"") -> 25 | I35: D | J35: S | K35: S | L35: N | M35: I
B36: Media | C36: =COUNTIF(C3:C32,"X")/C35 -> 0.76 | D36: =(COUNTIFS(D3:D32,"M",C3:C32,"X")+COUNTIFS(D3:D32,"F",C3:C32,"X"))/C39 -> 1 | E36: =AVERAGE(E3:E32) -> 2001.714286 | F36: =AVERAGEIFS(F3:F32,C3:C32,"X") -> 63.1 | G36: =AVERAGEIFS(G3:G32,C3:C32,"X") -> 170.6842105 | H36: =AVERAGEIFS(H3:H32,C3:C32,"X") -> 21.57908495 | I36: =(COUNTIFS(I3:I32,"D",C3:C32,"X")/C39) -> 0.7894736842 | J36: =(COUNTIFS(I3:I32,"S",C3:C32,"X")/C39) -> 0.2105263158 | K36: =(COUNTIFS(K3:K32,"S",C3:C32,"X")/C39) -> 0.4736842105 | L36: =(COUNTIFS(K3:K32,"N",C3:C32,"X")/C39) -> 0.1052631579 | M36: =(COUNTIFS(K3:K32,"I",C3:C32,"X")/C39) -> 0.4210526316 | N36: =AVERAGEIFS(N3:N32,C3:C32,"X") -> -1.210526316 | O36: =AVERAGEIFS(O3:O32,C3:C32,"X") -> 199.7222222 | P36: =AVERAGEIFS(P3:P32,C3:C32,"X") -> 511.6
B37: Media maschi | C37: =COUNTIFS(C3:C32,"X",D3:D32,"M")/C35 -> 0.68 | D37: =COUNTIFS(D3:D32,"M",C3:C32,"X")/C39 -> 0.8947368421 | E37: =AVERAGEIFS(E3:E32,C3:C32,"X",D3:D32,"M") -> 2002 | F37: =AVERAGEIFS(F3:F32,C3:C32,"X",D3:D32,"M") -> 63.78235294 | G37: =AVERAGEIFS(G3:G32,C3:C32,"X",D3:D32,"M") -> 171.8235294 | H37: =AVERAGEIFS(H3:H32,C3:C32,"X",D3:D32,"M") -> 21.51852869 | I37: =(COUNTIFS(I3:I32,"D",C3:C32,"X",D3:D32,"M")/COUNTIFS(D3:D32,"M",C3:C32,"X")) -> 0.8235294118 | J37: =(COUNTIFS(I3:I32,"S",C3:C32,"X",D3:D32,"M")/COUNTIFS(D3:D32,"M",C3:C32,"X")) -> 0.1764705882 | K37: =(COUNTIFS(K3:K32,"S",C3:C32,"X",D3:D32,"M")/COUNTIFS(D3:D32,"M",C3:C32,"X")) -> 0.5294117647 | L37: =(COUNTIFS(K3:K32,"N",C3:C32,"X",D3:D32,"M")/COUNTIFS(D3:D32,"M",C3:C32,"X")) -> 0.1176470588 | M37: =(COUNTIFS(K3:K32,"I",C3:C32,"X",D3:D32,"M")/COUNTIFS(D3:D32,"M",C3:C32,"X")) -> 0.3529411765 | N37: =AVERAGEIFS(N3:N32,C3:C32,"X",D3:D32,"M") -> -1.470588235 | O37: =AVERAGEIFS(O3:O32,C3:C32,"X",D3:D32,"M") -> 207.5625 | P37: =AVERAGEIFS(P3:P32,C3:C32,"X",D3:D32,"M") -> 499
B38: Media femmine | C38: =COUNTIFS(C4:C32,"X",D4:D32,"F")/C35 -> 0.08 | D38: =COUNTIFS(D3:D32,"F",C3:C32,"X")/C39 -> 0.1052631579 | E38: =AVERAGEIFS(E3:E32,C3:C32,"X",D3:D32,"F") -> 2001.5 | F38: =AVERAGEIFS(F3:F32,C3:C32,"X",D3:D32,"F") -> 57.3 | G38: =AVERAGEIFS(G3:G32,C3:C32,"X",D3:D32,"F") -> 161 | H38: =AVERAGEIFS(H3:H32,C3:C32,"X",D3:D32,"F") -> 22.09381316 | I38: =(COUNTIFS(I3:I32,"D",C3:C32,"X",D3:D32,"F")/COUNTIFS(D3:D32,"F",C3:C32,"X")) -> 0.5 | J38: =(COUNTIFS(I3:I32,"S",C3:C32,"X",D3:D32,"F")/COUNTIFS(D3:D32,"F",C3:C32,"X")) -> 0.5 | K38: =(COUNTIFS(K3:K32,"S",C3:C32,"X",D3:D32,"F")/COUNTIFS(D3:D32,"F",C3:C32,"X")) -> 0 | L38: =(COUNTIFS(K3:K32,"N",C3:C32,"X",D3:D32,"F")/COUNTIFS(D3:D32,"F",C3:C32,"X")) -> 0 | M38: =(COUNTIFS(K3:K32,"I",C3:C32,"X",D3:D32,"F")/COUNTIFS(D3:D32,"F",C3:C32,"X")) -> 1 | N38: =AVERAGEIFS(N3:N32,C3:C32,"X",D3:D32,"F") -> 1 | O38: =AVERAGEIFS(O3:O32,C3:C32,"X",D3:D32,"F") -> 137 | P38: =AVERAGEIFS(P3:P32,C3:C32,"X",D3:D32,"F") -> 593.5
B39: Presenti | C39: =COUNTIF(C3:C32,"X") -> 19 | N39: Record
N40: =MAX(N3:N32) -> 13 | O40: =MAX(O3:O32) -> 244 | P40: =MIN(P3:P32) -> 414
N41: =INDEX(B3:B32,MATCH(N40,N3:N32,0),1) -> CELLI MARTINA | O41: =INDEX(B3:B32,MATCH(O40,O3:O32,0),1) -> LAQUINDANUM BERNARD JR JUAN | P41: =INDEX(B3:B32,MATCH(P40,P3:P32,0),1) -> COLUCCIA DAMIANO

Sheet 1TD
A1: MODELLO | V1: LEGENDA
A2: N° | B2: Alunno | C2: Presente | D2: Sex | E2: Anno | F2: Peso | G2: Statura | H2: BMI | I2: S/D | K2: S/N/I | N2: Flessibilità | O2: Ldf | P2: Velocità | Q2: Note | S2: Sport | V2: COLONNA | W2: FUNZIONE | Y2: SIMBOLO
A3: 1 | B3: ALY ZYNAB MOHAM | D3: M | E3: 2001 | H3: =IF(C3 = "X",F3/(G3/100)^2,"") ->  | I3: D | Q3: =IF(AND(C3<>"X",B3<>""),"Assente",IF(AND(B3="",C3="X"),"??","")) -> Assente | R3: =IF(AND(C3="X",D3="M"),IF(H3<>"",IF(H3<20.7,"Sottopeso",IF(H3>27.8,"Sovrappeso","Normopeso")),""),IF(AND(C3="X",D3="F"),IF(H3<>"",IF(H3<19.1,"Sottopeso",IF(H3>27.3,"Sovrappeso","Normopeso")),""),"")) ->  | V3: I-J | W3: MANCINO O DESTRO | Y3: S/D
A4: 2 | B4: CASTILLO MARK LOUIE | C4: X | D4: M | E4: 2001 | F4: 69.8 | G4: 171 | H4: =IF(C4 = "X",F4/(G4/100)^2,"") -> 23.87059266 | I4: D | K4: N | N4: -2 | O4: 209 | P4: 490 | Q4: =IF(AND(C4<>"X",B4<>""),"Assente",IF(AND(B4="",C4="X"),"??","")) ->  | R4: =IF(AND(C4="X",D4="M"),IF(H4<>"",IF(H4<20.7,"Sottopeso",IF(H4>27.8,"Sovrappeso","Normopeso")),""),IF(AND(C4="X",D4="F"),IF(H4<>"",IF(H4<19.1,"Sottopeso",IF(H4>27.3,"Sovrappeso","Normopeso")),""),"")) -> Normopeso | V4: K-L-M | W4: SPORTIVO - NON SPORTIVO - INTERMEDIO | Y4: S/N/I
A5: 3 | B5: COPPI MIRKO | C5: X | D5: M | E5: 2001 | F5: 69.2 | G5: 175 | H5: 22.59591837 | I5: D | K5: I | N5: 2 | O5: 253 | P5: 453 | R5: Normopeso | V5: O | W5: SALTO IN LUNGO DA FERMO | Y5: NUMERICO
A6: 4 | B6: DE CAPOA LUCA | D6: M | E6: 2002 | I6: S | Q6: Assente | V6: SPORT | W6: ALUNNO SELEZIONATO PER SQUADRA | Y6: X
A7: 5 | B7: DI CONSIGLIO SAMUEL | C7: X | D7: M | E7: 2002 | F7: 68.5 | G7: 165 | H7: 25.16069789 | I7: D | K7: N | N7: -16 | O7: 143 | P7: 560 | R7: Normopeso
A8: 6 | B8: FALCIANI FEDERICO | C8: X | D8: M | E8: 2003 | F8: 50.3 | G8: 169 | H8: 17.61142817 | I8: D | K8: S | N8: -9 | O8: 197 | P8: 477 | R8: Sottopeso | V8: TUTTI I DATI VANNO INSERITI IN FORMATO CAPSLOCK (MAIUSCOLO)
A9: 7 | B9: GADALLA YOUSSEF | C9: X | D9: M | E9: 2002 | F9: 65.8 | G9: 176 | H9: 21.24225207 | I9: S | K9: N | N9: -11 | O9: 185 | P9: 500 | R9: Normopeso
A10: 8 | B10: GENNA MATTEO | C10: X | D10: M | E10: 2002 | F10: 49.2 | G10: 162 | H10: 18.7471422 | I10: D | K10: I | N10: -9 | O10: 223 | P10: 491 | R10: Sottopeso
A11: 9 | B11: GISTI ALESSIO | C11: X | D11: M | E11: 2000 | F11: 75.4 | G11: 166 | H11: 27.3624619 | I11: D | K11: I | N11: 4 | O11: 198 | P11: 568 | R11: Normopeso
A12: 10 | B12: GRANDE CHRISTIAN DYLAN | C12: X | D12: M | E12: 2001 | F12: 63.2 | G12: 174 | H12: 20.87462016 | I12: D | K12: N | N12: 3 | O12: 214 | P12: 497 | R12: Normopeso
A13: 11 | B13: ILAGAN ZAKI HUDSON | C13: X | D13: M | E13: 2003 | F13: 76.8 | G13: 167 | H13: 27.53773889 | I13: D | K13: I | N13: 6 | O13: 202 | P13: 466 | R13: Normopeso
A14: 12 | B14: MEZZINI LORENZO | D14: M | E14: 2001 | I14: S | Q14: Assente
A15: 13 | B15: PISTOLA ANDREA | C15: X | D15: M | E15: 2001 | F15: 56 | G15: 172 | H15: 18.92915089 | I15: D | K15: S | N15: 18 | O15: 251 | P15: 466 | R15: Sottopeso
A16: 14 | B16: RATEANU REBECCA | C16: X | D16: F | E16: 2002 | F16: 57.4 | G16: 169 | H16: 20.09733553 | I16: D | K16: S | N16: 18 | O16: 200 | P16: 481 | R16: Normopeso
A17: 15 | B17: RIOTTO ROSARIO | C17: X | D17: M | E17: 2002 | F17: 75.8 | G17: 159 | H17: 29.98299118 | K17: N | N17: -12 | O17: 138 | P17: 615 | R17: Sovrappeso
A18: 16 | B18: ROSSI GIACOMO | D18: M | E18: 2002 | I18: D | Q18: Assente
A19: 17 | B19: SANTINI ALESSIO | C19: X | D19: M | E19: 2002 | F19: 58.6 | G19: 171 | H19: 20.0403543 | I19: D | K19: I | N19: 5 | O19: 222 | P19: 453 | R19: Sottopeso
A20: 18 | B20: TAREK HUSSEIN RAHMA | D20: M | E20: 2002 | Q20: Assente
A21: 19 | B21: TUCCI ROBERTO | C21: X | D21: M | E21: 2002 | F21: 55.5 | G21: 168 | H21: 19.66411565 | I21: D | K21: S | N21: 18 | O21: 213 | P21: 472 | R21: Sottopeso
A22: 20 | B22: URETA MUCHA WALTER | C22: X | D22: M | E22: 2001 | F22: 59.8 | G22: 163 | H22: 22.50743348 | I22: D | K22: N | N22: -6 | O22: 214 | P22: 503 | R22: Normopeso
A23: 21 | B23: VENTURA FABRIZIO | C23: X | D23: M | E23: 2002 | F23: 58.4 | G23: 171 | H23: 19.97195718 | I23: D | K23: S | N23: 10 | O23: 243 | P23: 466 | R23: Sottopeso
A24: 22 | B24: VETTURINI MIRKO | C24: X | D24: M | E24: 2001 | F24: 65.6 | G24: 181 | H24: 20.0238088 | I24: D | K24: N | N24: 9 | O24: 209 | P24: 453 | R24: Sottopeso
A25: 23 | B25: VINCENTINI ORGNANI MATTEO | D25: M | E25: 2002 | Q25: Assente
A26: 24
A27: 25
A28: 26
A29: 27
A30: 28
A31: 29
A32: 30
B35: Alunni : | C35: =COUNTIF(B3:B32,"<>"&"") -> 23 | I35: D | J35: S | K35: S | L35: N | M35: I
B36: Media | C36: =COUNTIF(C3:C32,"X")/C35 -> 0.7391304348 | D36: =(COUNTIFS(D3:D32,"M",C3:C32,"X")+COUNTIFS(D3:D32,"F",C3:C32,"X"))/C39 -> 1 | E36: =AVERAGE(E3:E32) -> 2001.652174 | F36: =AVERAGEIFS(F3:F32,C3:C32,"X") -> 63.25294118 | G36: =AVERAGEIFS(G3:G32,C3:C32,"X") -> 169.3529412 | H36: =AVERAGEIFS(H3:H32,C3:C32,"X") -> 22.13058819 | I36: =(COUNTIFS(I3:I32,"D",C3:C32,"X")/C39) -> 0.8823529412 | J36: =(COUNTIFS(I3:I32,"S",C3:C32,"X")/C39) -> 0.05882352941 | K36: =(COUNTIFS(K3:K32,"S",C3:C32,"X")/C39) -> 0.2941176471 | L36: =(COUNTIFS(K3:K32,"N",C3:C32,"X")/C39) -> 0.4117647059 | M36: =(COUNTIFS(K3:K32,"I",C3:C32,"X")/C39) -> 0.2941176471 | N36: =AVERAGEIFS(N3:N32,C3:C32,"X") -> 1.647058824 | O36: =AVERAGEIFS(O3:O32,C3:C32,"X") -> 206.7058824 | P36: =AVERAGEIFS(P3:P32,C3:C32,"X") -> 494.7647059
B37: Media maschi | C37: =COUNTIFS(C3:C32,"X",D3:D32,"M")/C35 -> 0.6956521739 | D37: =COUNTIFS(D3:D32,"M",C3:C32,"X")/C39 -> 0.9411764706 | E37: =AVERAGEIFS(E3:E32,C3:C32,"X",D3:D32,"M") -> 2001.625 | F37: =AVERAGEIFS(F3:F32,C3:C32,"X",D3:D32,"M") -> 63.61875 | G37: =AVERAGEIFS(G3:G32,C3:C32,"X",D3:D32,"M") -> 169.375 | H37: =AVERAGEIFS(H3:H32,C3:C32,"X",D3:D32,"M") -> 22.25766649 | I37: =(COUNTIFS(I3:I32,"D",C3:C32,"X",D3:D32,"M")/COUNTIFS(D3:D32,"M",C3:C32,"X")) -> 0.875 | J37: =(COUNTIFS(I3:I32,"S",C3:C32,"X",D3:D32,"M")/COUNTIFS(D3:D32,"M",C3:C32,"X")) -> 0.0625 | K37: =(COUNTIFS(K3:K32,"S",C3:C32,"X",D3:D32,"M")/COUNTIFS(D3:D32,"M",C3:C32,"X")) -> 0.25 | L37: =(COUNTIFS(K3:K32,"N",C3:C32,"X",D3:D32,"M")/COUNTIFS(D3:D32,"M",C3:C32,"X")) -> 0.4375 | M37: =(COUNTIFS(K3:K32,"I",C3:C32,"X",D3:D32,"M")/COUNTIFS(D3:D32,"M",C3:C32,"X")) -> 0.3125 | N37: =AVERAGEIFS(N3:N32,C3:C32,"X",D3:D32,"M") -> 0.625 | O37: =AVERAGEIFS(O3:O32,C3:C32,"X",D3:D32,"M") -> 207.125 | P37: =AVERAGEIFS(P3:P32,C3:C32,"X",D3:D32,"M") -> 495.625
B38: Media femmine | C38: =COUNTIFS(C4:C32,"X",D4:D32,"F")/C35 -> 0.04347826087 | D38: =COUNTIFS(D3:D32,"F",C3:C32,"X")/C39 -> 0.05882352941 | E38: =AVERAGEIFS(E3:E32,C3:C32,"X",D3:D32,"F") -> 2002 | F38: =AVERAGEIFS(F3:F32,C3:C32,"X",D3:D32,"F") -> 57.4 | G38: =AVERAGEIFS(G3:G32,C3:C32,"X",D3:D32,"F") -> 169 | H38: =AVERAGEIFS(H3:H32,C3:C32,"X",D3:D32,"F") -> 20.09733553 | I38: =(COUNTIFS(I3:I32,"D",C3:C32,"X",D3:D32,"F")/COUNTIFS(D3:D32,"F",C3:C32,"X")) -> 1 | J38: =(COUNTIFS(I3:I32,"S",C3:C32,"X",D3:D32,"F")/COUNTIFS(D3:D32,"F",C3:C32,"X")) -> 0 | K38: =(COUNTIFS(K3:K32,"S",C3:C32,"X",D3:D32,"F")/COUNTIFS(D3:D32,"F",C3:C32,"X")) -> 1 | L38: =(COUNTIFS(K3:K32,"N",C3:C32,"X",D3:D32,"F")/COUNTIFS(D3:D32,"F",C3:C32,"X")) -> 0 | M38: =(COUNTIFS(K3:K32,"I",C3:C32,"X",D3:D32,"F")/COUNTIFS(D3:D32,"F",C3:C32,"X")) -> 0 | N38: =AVERAGEIFS(N3:N32,C3:C32,"X",D3:D32,"F") -> 18 | O38: =AVERAGEIFS(O3:O32,C3:C32,"X",D3:D32,"F") -> 200 | P38: =AVERAGEIFS(P3:P32,C3:C32,"X",D3:D32,"F") -> 481
B39: Presenti | C39: =COUNTIF(C3:C32,"X") -> 17 | N39: Record
N40: =MAX(N3:N32) -> 18 | O40: =MAX(O3:O32) -> 253 | P40: =MIN(P3:P32) -> 453
N41: =INDEX(B3:B32,MATCH(N40,N3:N32,0),1) -> PISTOLA ANDREA | O41: =INDEX(B3:B32,MATCH(O40,O3:O32,0),1) -> COPPI MIRKO | P41: =INDEX(B3:B32,MATCH(P40,P3:P32,0),1) -> COPPI MIRKO

Sheet 1TE
A1: MODELLO | V1: LEGENDA
A2: N° | B2: Alunno | C2: Presente | D2: Sex | E2: Anno | F2: Peso | G2: Statura | H2: BMI | I2: S/D | K2: S/N/I | N2: Flessibilità | O2: Ldf | P2: Velocità | Q2: Note | S2: Sport | V2: COLONNA | W2: FUNZIONE | Y2: SIMBOLO
A3: 1 | B3: APPOLLONI RICCARDO | C3: X | D3: M | E3: 2003 | F3: 61.5 | G3: 174 | H3: =IF(C3 = "X",F3/(G3/100)^2,"") -> 20.3131193 | I3: D | K3: S | N3: -24 | O3: - | P3: - | Q3: =IF(AND(C3<>"X",B3<>""),"Assente",IF(AND(B3="",C3="X"),"??","")) ->  | R3: =IF(AND(C3="X",D3="M"),IF(H3<>"",IF(H3<20.7,"Sottopeso",IF(H3>27.8,"Sovrappeso","Normopeso")),""),IF(AND(C3="X",D3="F"),IF(H3<>"",IF(H3<19.1,"Sottopeso",IF(H3>27.3,"Sovrappeso","Normopeso")),""),"")) -> Sottopeso | V3: I-J | W3: MANCINO O DESTRO | Y3: S/D
A4: 2 | B4: BONTEMPO FILIPPO | C4: X | D4: M | E4: 2002 | F4: 48.6 | G4: 164 | H4: =IF(C4 = "X",F4/(G4/100)^2,"") -> 18.06960143 | I4: D | K4: I | N4: -13 | O4: 215 | P4: 472 | Q4: =IF(AND(C4<>"X",B4<>""),"Assente",IF(AND(B4="",C4="X"),"??","")) ->  | R4: =IF(AND(C4="X",D4="M"),IF(H4<>"",IF(H4<20.7,"Sottopeso",IF(H4>27.8,"Sovrappeso","Normopeso")),""),IF(AND(C4="X",D4="F"),IF(H4<>"",IF(H4<19.1,"Sottopeso",IF(H4>27.3,"Sovrappeso","Normopeso")),""),"")) -> Sottopeso | V4: K-L-M | W4: SPORTIVO - NON SPORTIVO - INTERMEDIO | Y4: S/N/I
A5: 3 | B5: BRANCIAMORE RICCARDO | C5: X | D5: M | E5: 2002 | F5: 70 | G5: 171 | H5: 23.93898977 | I5: D | K5: S | N5: 9 | O5: 198 | P5: 463 | R5: Normopeso | V5: O | W5: SALTO IN LUNGO DA FERMO | Y5: NUMERICO
A6: 4 | B6: BRUTTI RICCARDO | C6: X | D6: M | E6: 2002 | F6: 70 | G6: 167 | H6: 25.0995016 | I6: D | K6: S | N6: -17 | O6: 177 | P6: 540 | R6: Normopeso | V6: SPORT | W6: ALUNNO SELEZIONATO PER SQUADRA | Y6: X
A7: 5 | B7: CALVA ALESSANDRO | C7: X | D7: M | E7: 2002 | F7: 59.9 | G7: 177 | H7: 19.11966549 | I7: D | K7: I | N7: 4 | O7: 196 | P7: 481 | R7: Sottopeso
A8: 6 | B8: CAPRA PIERFRANCESCO | C8: X | D8: M | E8: 2002 | F8: 57.6 | G8: 173 | H8: 19.2455478 | I8: D | K8: S | N8: -10 | O8: 217 | P8: 460 | R8: Sottopeso | V8: TUTTI I DATI VANNO INSERITI IN FORMATO CAPSLOCK (MAIUSCOLO)
A9: 7 | B9: CECATI ALEX | D9: M | E9: 2002 | I9: D | Q9: Assente
A10: 8 | B10: DE ZULIANI MIRKO | C10: X | D10: M | E10: 2002 | F10: 95.4 | G10: 177 | H10: 30.45101982 | I10: D | K10: I | N10: -15 | O10: - | P10: - | R10: Sovrappeso
A11: 9 | B11: GIZZI ANDREA | C11: X | D11: M | E11: 2002 | F11: 57.8 | G11: 171 | H11: 19.76676584 | I11: D | K11: I | N11: 0 | O11: 212 | P11: 469 | R11: Sottopeso
A12: 10 | B12: GUARNONI LUCA | D12: M | E12: 2001 | Q12: Assente
A13: 11 | B13: LECCISOTTO STEFANO | D13: M | E13: 2002 | Q13: Assente
A14: 12 | B14: MAGTIBAY JOHN KERBY VILLANUEVA | C14: X | D14: M | E14: 2001 | F14: 53 | G14: 161 | H14: 20.44674202 | I14: D | K14: I | N14: -11 | O14: 210 | P14: 494 | R14: Sottopeso
A15: 13 | B15: MICHETTI LORENZO | C15: X | D15: M | E15: 2003 | F15: 55.5 | G15: 170 | H15: 19.20415225 | I15: D | K15: I | N15: -3 | O15: 196 | P15: 509 | R15: Sottopeso
A16: 14 | B16: MOSCA FEDERICO | C16: X | D16: M | E16: 2002 | F16: 66.8 | G16: 167 | H16: 23.95209581 | I16: D | K16: S | N16: -11 | O16: 195 | P16: 500 | R16: Normopeso
A17: 15 | B17: PARISI ANDREA | C17: X | D17: M | E17: 2002 | F17: 82.1 | G17: 175 | H17: 26.80816327 | I17: D | K17: S | N17: -12 | O17: 205 | P17: 488 | R17: Normopeso
A18: 16 | B18: PARISI CHIARA | C18: X | D18: F | E18: 2003 | F18: 57.4 | G18: 158 | H18: 22.99311008 | I18: D | K18: I | N18: 11 | O18: 164 | P18: 575 | R18: Normopeso
A19: 17 | B19: SALOMONE MARCO | C19: X | D19: M | E19: 2001 | F19: 54 | G19: 167 | H19: 19.36247266 | I19: D | K19: S | N19: 7 | O19: 209 | P19: 478 | R19: Sottopeso
A20: 18 | B20: SPALLETTI MATTEO | C20: X | D20: M | E20: 2002 | F20: 46.3 | G20: 162 | H20: 17.64212772 | I20: D | K20: I | N20: -12 | O20: 172 | P20: 529 | R20: Sottopeso
A21: 19 | B21: STELLA SIMONE | D21: M | E21: 2002 | I21: D | Q21: Assente
A22: 20 | B22: TEDESCO SARIO | C22: X | D22: M | E22: 2002 | F22: 63.2 | G22: 176 | H22: 20.40289256 | I22: D | K22: I | N22: -22 | O22: 181 | P22: 550 | R22: Sottopeso
A23: 21 | B23: TRIPODI ALESSIO | C23: X | D23: M | E23: 2002 | F23: 54.5 | G23: 165 | H23: 20.01836547 | I23: D | K23: S | N23: 12 | O23: 231 | P23: 438 | R23: Sottopeso
A24: 22 | B24: VENESELLI DANIELE | C24: X | D24: M | E24: 2002 | F24: 53.7 | G24: 171 | H24: 18.36462501 | I24: D | K24: I | N24: 14 | O24: 228 | P24: 475 | R24: Sottopeso
A25: 23 | B25: ASCENCIO APAZA PAUL ANTHONY | D25: M | E25: 2000 | Q25: Assente
A26: 24 | B26: BERTOLOTTI FABIO | C26: X | D26: M | E26: 2001 | F26: 44.5 | G26: 162 | H26: 16.95625667 | I26: D | K26: I | N26: -8 | O26: 183 | P26: 528 | R26: Sottopeso
A27: 25 | B27: MORANTE GABRIEL | C27: X | D27: M | E27: 2001 | F27: 62.6 | G27: 168 | H27: 22.17970522 | I27: D | K27: S | N27: -20 | O27: 219 | P27: 482 | R27: Normopeso
A28: 26 | B28: PORCARI GABRIELE | D28: M | E28: 2000 | Q28: Assente
A29: 27 | B29: ZIOMKA JAKUB | C29: X | D29: M | E29: 2002 | F29: 62.3 | G29: 175 | H29: 20.34285714 | I29: D | K29: S | N29: 3 | O29: 235 | P29: 472 | R29: Sottopeso
A30: 28
A31: 29
A32: 30
B35: Alunni : | C35: =COUNTIF(B3:B32,"<>"&"") -> 27 | I35: D | J35: S | K35: S | L35: N | M35: I
B36: Media | C36: =COUNTIF(C3:C32,"X")/C35 -> 0.7777777778 | D36: =(COUNTIFS(D3:D32,"M",C3:C32,"X")+COUNTIFS(D3:D32,"F",C3:C32,"X"))/C39 -> 1 | E36: =AVERAGE(E3:E32) -> 2001.777778 | F36: =AVERAGEIFS(F3:F32,C3:C32,"X") -> 60.7952381 | G36: =AVERAGEIFS(G3:G32,C3:C32,"X") -> 169.0952381 | H36: =AVERAGEIFS(H3:H32,C3:C32,"X") -> 21.17513223 | I36: =(COUNTIFS(I3:I32,"D",C3:C32,"X")/C39) -> 1 | J36: =(COUNTIFS(I3:I32,"S",C3:C32,"X")/C39) -> 0 | K36: =(COUNTIFS(K3:K32,"S",C3:C32,"X")/C39) -> 0.4761904762 | L36: =(COUNTIFS(K3:K32,"N",C3:C32,"X")/C39) -> 0 | M36: =(COUNTIFS(K3:K32,"I",C3:C32,"X")/C39) -> 0.5238095238 | N36: =AVERAGEIFS(N3:N32,C3:C32,"X") -> -5.619047619 | O36: =AVERAGEIFS(O3:O32,C3:C32,"X") -> 202.2631579 | P36: =AVERAGEIFS(P3:P32,C3:C32,"X") -> 494.8947368
B37: Media maschi | C37: =COUNTIFS(C3:C32,"X",D3:D32,"M")/C35 -> 0.7407407407 | D37: =COUNTIFS(D3:D32,"M",C3:C32,"X")/C39 -> 0.9523809524 | E37: =AVERAGEIFS(E3:E32,C3:C32,"X",D3:D32,"M") -> 2001.9 | F37: =AVERAGEIFS(F3:F32,C3:C32,"X",D3:D32,"M") -> 60.965 | G37: =AVERAGEIFS(G3:G32,C3:C32,"X",D3:D32,"M") -> 169.65 | H37: =AVERAGEIFS(H3:H32,C3:C32,"X",D3:D32,"M") -> 21.08423334 | I37: =(COUNTIFS(I3:I32,"D",C3:C32,"X",D3:D32,"M")/COUNTIFS(D3:D32,"M",C3:C32,"X")) -> 1 | J37: =(COUNTIFS(I3:I32,"S",C3:C32,"X",D3:D32,"M")/COUNTIFS(D3:D32,"M",C3:C32,"X")) -> 0 | K37: =(COUNTIFS(K3:K32,"S",C3:C32,"X",D3:D32,"M")/COUNTIFS(D3:D32,"M",C3:C32,"X")) -> 0.5 | L37: =(COUNTIFS(K3:K32,"N",C3:C32,"X",D3:D32,"M")/COUNTIFS(D3:D32,"M",C3:C32,"X")) -> 0 | M37: =(COUNTIFS(K3:K32,"I",C3:C32,"X",D3:D32,"M")/COUNTIFS(D3:D32,"M",C3:C32,"X")) -> 0.5 | N37: =AVERAGEIFS(N3:N32,C3:C32,"X",D3:D32,"M") -> -6.45 | O37: =AVERAGEIFS(O3:O32,C3:C32,"X",D3:D32,"M") -> 204.3888889 | P37: =AVERAGEIFS(P3:P32,C3:C32,"X",D3:D32,"M") -> 490.4444444
B38: Media femmine | C38: =COUNTIFS(C4:C32,"X",D4:D32,"F")/C35 -> 0.03703703704 | D38: =COUNTIFS(D3:D32,"F",C3:C32,"X")/C39 -> 0.04761904762 | E38: =AVERAGEIFS(E3:E32,C3:C32,"X",D3:D32,"F") -> 2003 | F38: =AVERAGEIFS(F3:F32,C3:C32,"X",D3:D32,"F") -> 57.4 | G38: =AVERAGEIFS(G3:G32,C3:C32,"X",D3:D32,"F") -> 158 | H38: =AVERAGEIFS(H3:H32,C3:C32,"X",D3:D32,"F") -> 22.99311008 | I38: =(COUNTIFS(I3:I32,"D",C3:C32,"X",D3:D32,"F")/COUNTIFS(D3:D32,"F",C3:C32,"X")) -> 1 | J38: =(COUNTIFS(I3:I32,"S",C3:C32,"X",D3:D32,"F")/COUNTIFS(D3:D32,"F",C3:C32,"X")) -> 0 | K38: =(COUNTIFS(K3:K32,"S",C3:C32,"X",D3:D32,"F")/COUNTIFS(D3:D32,"F",C3:C32,"X")) -> 0 | L38: =(COUNTIFS(K3:K32,"N",C3:C32,"X",D3:D32,"F")/COUNTIFS(D3:D32,"F",C3:C32,"X")) -> 0 | M38: =(COUNTIFS(K3:K32,"I",C3:C32,"X",D3:D32,"F")/COUNTIFS(D3:D32,"F",C3:C32,"X")) -> 1 | N38: =AVERAGEIFS(N3:N32,C3:C32,"X",D3:D32,"F") -> 11 | O38: =AVERAGEIFS(O3:O32,C3:C32,"X",D3:D32,"F") -> 164 | P38: =AVERAGEIFS(P3:P32,C3:C32,"X",D3:D32,"F") -> 575
B39: Presenti | C39: =COUNTIF(C3:C32,"X") -> 21 | N39: Record
N40: =MAX(N3:N32) -> 14 | O40: =MAX(O3:O32) -> 235 | P40: =MIN(P3:P32) -> 438
N41: =INDEX(B3:B32,MATCH(N40,N3:N32,0),1) -> VENESELLI DANIELE | O41: =INDEX(B3:B32,MATCH(O40,O3:O32,0),1) -> ZIOMKA JAKUB | P41: =INDEX(B3:B32,MATCH(P40,P3:P32,0),1) -> TRIPODI ALESSIO

Sheet 1LA
A1: MODELLO | V1: LEGENDA
A2: N° | B2: Alunno | C2: Presente | D2: Sex | E2: Anno | F2: Peso | G2: Statura | H2: BMI | I2: S/D | K2: S/N/I | N2: Flessibilità | O2: Ldf | P2: Velocità | Q2: Note | S2: Sport | V2: COLONNA | W2: FUNZIONE | Y2: SIMBOLO
A3: 1 | B3: ASTROLOGO ANGELO | H3: =IF(C3 = "X",F3/(G3/100)^2,"") ->  | Q3: =IF(AND(C3<>"X",B3<>""),"Assente",IF(AND(B3="",C3="X"),"??","")) -> Assente | R3: =IF(AND(C3="X",D3="M"),IF(H3<>"",IF(H3<20.7,"Sottopeso",IF(H3>27.8,"Sovrappeso","Normopeso")),""),IF(AND(C3="X",D3="F"),IF(H3<>"",IF(H3<19.1,"Sottopeso",IF(H3>27.3,"Sovrappeso","Normopeso")),""),"")) ->  | V3: I-J | W3: MANCINO O DESTRO | Y3: S/D
A4: 2 | B4: BERNABE DONALINE | H4: =IF(C4 = "X",F4/(G4/100)^2,"") ->  | Q4: =IF(AND(C4<>"X",B4<>""),"Assente",IF(AND(B4="",C4="X"),"??","")) -> Assente | R4: =IF(AND(C4="X",D4="M"),IF(H4<>"",IF(H4<20.7,"Sottopeso",IF(H4>27.8,"Sovrappeso","Normopeso")),""),IF(AND(C4="X",D4="F"),IF(H4<>"",IF(H4<19.1,"Sottopeso",IF(H4>27.3,"Sovrappeso","Normopeso")),""),"")) ->  | V4: K-L-M | W4: SPORTIVO - NON SPORTIVO - INTERMEDIO | Y4: S/N/I
A5: 3 | B5: BIANCHI ALESSANDRO | C5: X | D5: M | E5: 2001 | F5: 73.5 | G5: 172 | H5: 24.84451055 | I5: D | K5: S | N5: - | O5: - | P5: - | R5: Normopeso | V5: O | W5: SALTO IN LUNGO DA FERMO | Y5: NUMERICO
A6: 4 | B6: CALO' REBECCA | C6: X | D6: F | E6: 2003 | F6: 63.9 | G6: 157 | H6: 25.92397257 | I6: D | K6: I | N6: -19 | O6: 117 | P6: 653 | R6: Normopeso | V6: SPORT | W6: ALUNNO SELEZIONATO PER SQUADRA | Y6: X
A7: 5 | B7: CAPONE ANDREA | Q7: Assente
A8: 6 | B8: COLASANTI DAMIANO | C8: X | D8: M | E8: 2002 | F8: 65.2 | G8: 170 | H8: 22.56055363 | I8: D | K8: S | N8: 6 | O8: 202 | P8: 478 | R8: Normopeso | V8: TUTTI I DATI VANNO INSERITI IN FORMATO CAPSLOCK (MAIUSCOLO)
A9: 7 | B9: CRISTIANI LORENZO | C9: X | D9: M | E9: 2002 | F9: 51.5 | G9: 161 | H9: 19.86806065 | I9: D | K9: S | N9: 6 | O9: 197 | P9: 481 | R9: Sottopeso
A10: 8 | B10: D'ALO' LORENZO | Q10: Assente
A11: 9 | B11: D'ATTINO EDOARDO | C11: X | D11: M | E11: 2002 | F11: 52.4 | G11: 166 | H11: 19.01582233 | I11: D | K11: S | N11: -1 | O11: 208 | P11: 522 | R11: Sottopeso
A12: 10 | B12: FANELLI PIETRO | C12: X | D12: M | E12: 2002 | F12: 57.1 | G12: 172 | H12: 19.3009735 | I12: D | K12: I | N12: 0 | O12: 202 | P12: 510 | R12: Sottopeso
A13: 11 | B13: GAGLIARDINI DAVIDE | C13: X | D13: M | E13: 2002 | F13: 58.9 | G13: 168 | H13: 20.86876417 | I13: D | K13: S | N13: 9 | O13: 208 | P13: 471 | R13: Normopeso
A14: 12 | B14: GROSSI SALVATORE | C14: X | D14: M | E14: 2002 | F14: 55.8 | G14: 169 | H14: 19.53713105 | I14: D | K14: I | N14: -15 | O14: 192 | P14: 484 | R14: Sottopeso
A15: 13 | B15: MAGGI GIORGIA | C15: X | D15: F | E15: 2002 | F15: 52.3 | G15: 166 | H15: 18.97953259 | I15: D | K15: S | N15: -5 | O15: 171 | P15: 531 | R15: Sottopeso
A16: 14 | B16: NAPPI GIULIO | C16: X | D16: M | E16: 2003 | F16: 47.3 | G16: 159 | H16: 18.70970294 | I16: D | K16: S | N16: -20 | O16: 180 | P16: 553 | R16: Sottopeso
A17: 15 | B17: ORSOLA RICCARDO | C17: X | D17: M | E17: 2002 | F17: 51.5 | G17: 161 | H17: 19.86806065 | I17: D | K17: I | N17: -18 | O17: 134 | P17: 640 | R17: Sottopeso
A18: 16 | B18: PICHINI LEONARDO | Q18: Assente
A19: 17 | B19: SANGERMANO ANDREA | C19: X | D19: M | E19: 2003 | F19: 57.6 | G19: 169 | H19: 20.16736109 | I19: D | K19: S | N19: 0 | O19: 200 | P19: 478 | R19: Sottopeso
A20: 18 | B20: SANTOPADRE LEONARDO | C20: X | D20: M | E20: 2002 | F20: 73.3 | G20: 167 | H20: 26.28276381 | I20: S | K20: I | N20: -17 | O20: 166 | P20: - | R20: Normopeso
A21: 19 | B21: SCAFETTA LETIZIA | Q21: Assente
A22: 20 | B22: SENTINELLI TOMMASO | C22: X | D22: M | E22: 2001 | F22: 59.7 | G22: 168 | H22: 21.15221088 | I22: D | K22: S | N22: -10 | O22: 170 | P22: 535 | R22: Normopeso
A23: 21 | B23: FALASCA FEDERICO | Q23: Assente
A24: 22 | B24: MALGIERI MATTIA | Q24: Assente
A25: 23 | B25: OLIVO PAOLO | C25: X | D25: M | E25: 2002 | F25: 73.7 | G25: 173 | H25: 24.6249457 | I25: D | K25: I | N25: -25 | O25: 168 | P25: 613 | R25: Normopeso
A26: 24
A27: 25
A28: 26
A29: 27
A30: 28
A31: 29
A32: 30
B35: Alunni : | C35: =COUNTIF(B3:B32,"<>"&"") -> 23 | I35: D | J35: S | K35: S | L35: N | M35: I
B36: Media | C36: =COUNTIF(C3:C32,"X")/C35 -> 0.652173913 | D36: =(COUNTIFS(D3:D32,"M",C3:C32,"X")+COUNTIFS(D3:D32,"F",C3:C32,"X"))/C39 -> 1 | E36: =AVERAGE(E3:E32) -> 2002.066667 | F36: =AVERAGEIFS(F3:F32,C3:C32,"X") -> 59.58 | G36: =AVERAGEIFS(G3:G32,C3:C32,"X") -> 166.5333333 | H36: =AVERAGEIFS(H3:H32,C3:C32,"X") -> 21.44695774 | I36: =(COUNTIFS(I3:I32,"D",C3:C32,"X")/C39) -> 0.9333333333 | J36: =(COUNTIFS(I3:I32,"S",C3:C32,"X")/C39) -> 0.06666666667 | K36: =(COUNTIFS(K3:K32,"S",C3:C32,"X")/C39) -> 0.6 | L36: =(COUNTIFS(K3:K32,"N",C3:C32,"X")/C39) -> 0 | M36: =(COUNTIFS(K3:K32,"I",C3:C32,"X")/C39) -> 0.4 | N36: =AVERAGEIFS(N3:N32,C3:C32,"X") -> -7.785714286 | O36: =AVERAGEIFS(O3:O32,C3:C32,"X") -> 179.6428571 | P36: =AVERAGEIFS(P3:P32,C3:C32,"X") -> 534.5384615
B37: Media maschi | C37: =COUNTIFS(C3:C32,"X",D3:D32,"M")/C35 -> 0.5652173913 | D37: =COUNTIFS(D3:D32,"M",C3:C32,"X")/C39 -> 0.8666666667 | E37: =AVERAGEIFS(E3:E32,C3:C32,"X",D3:D32,"M") -> 2002 | F37: =AVERAGEIFS(F3:F32,C3:C32,"X",D3:D32,"M") -> 59.80769231 | G37: =AVERAGEIFS(G3:G32,C3:C32,"X",D3:D32,"M") -> 167.3076923 | H37: =AVERAGEIFS(H3:H32,C3:C32,"X",D3:D32,"M") -> 21.29237392 | I37: =(COUNTIFS(I3:I32,"D",C3:C32,"X",D3:D32,"M")/COUNTIFS(D3:D32,"M",C3:C32,"X")) -> 0.9230769231 | J37: =(COUNTIFS(I3:I32,"S",C3:C32,"X",D3:D32,"M")/COUNTIFS(D3:D32,"M",C3:C32,"X")) -> 0.07692307692 | K37: =(COUNTIFS(K3:K32,"S",C3:C32,"X",D3:D32,"M")/COUNTIFS(D3:D32,"M",C3:C32,"X")) -> 0.6153846154 | L37: =(COUNTIFS(K3:K32,"N",C3:C32,"X",D3:D32,"M")/COUNTIFS(D3:D32,"M",C3:C32,"X")) -> 0 | M37: =(COUNTIFS(K3:K32,"I",C3:C32,"X",D3:D32,"M")/COUNTIFS(D3:D32,"M",C3:C32,"X")) -> 0.3846153846 | N37: =AVERAGEIFS(N3:N32,C3:C32,"X",D3:D32,"M") -> -7.083333333 | O37: =AVERAGEIFS(O3:O32,C3:C32,"X",D3:D32,"M") -> 185.5833333 | P37: =AVERAGEIFS(P3:P32,C3:C32,"X",D3:D32,"M") -> 524.0909091
B38: Media femmine | C38: =COUNTIFS(C4:C32,"X",D4:D32,"F")/C35 -> 0.08695652174 | D38: =COUNTIFS(D3:D32,"F",C3:C32,"X")/C39 -> 0.1333333333 | E38: =AVERAGEIFS(E3:E32,C3:C32,"X",D3:D32,"F") -> 2002.5 | F38: =AVERAGEIFS(F3:F32,C3:C32,"X",D3:D32,"F") -> 58.1 | G38: =AVERAGEIFS(G3:G32,C3:C32,"X",D3:D32,"F") -> 161.5 | H38: =AVERAGEIFS(H3:H32,C3:C32,"X",D3:D32,"F") -> 22.45175258 | I38: =(COUNTIFS(I3:I32,"D",C3:C32,"X",D3:D32,"F")/COUNTIFS(D3:D32,"F",C3:C32,"X")) -> 1 | J38: =(COUNTIFS(I3:I32,"S",C3:C32,"X",D3:D32,"F")/COUNTIFS(D3:D32,"F",C3:C32,"X")) -> 0 | K38: =(COUNTIFS(K3:K32,"S",C3:C32,"X",D3:D32,"F")/COUNTIFS(D3:D32,"F",C3:C32,"X")) -> 0.5 | L38: =(COUNTIFS(K3:K32,"N",C3:C32,"X",D3:D32,"F")/COUNTIFS(D3:D32,"F",C3:C32,"X")) -> 0 | M38: =(COUNTIFS(K3:K32,"I",C3:C32,"X",D3:D32,"F")/COUNTIFS(D3:D32,"F",C3:C32,"X")) -> 0.5 | N38: =AVERAGEIFS(N3:N32,C3:C32,"X",D3:D32,"F") -> -12 | O38: =AVERAGEIFS(O3:O32,C3:C32,"X",D3:D32,"F") -> 144 | P38: =AVERAGEIFS(P3:P32,C3:C32,"X",D3:D32,"F") -> 592
B39: Presenti | C39: =COUNTIF(C3:C32,"X") -> 15 | N39: Record
N40: =MAX(N3:N32) -> 9 | O40: =MAX(O3:O32) -> 208 | P40: =MIN(P3:P32) -> 471
N41: =INDEX(B3:B32,MATCH(N40,N3:N32,0),1) -> GAGLIARDINI DAVIDE | O41: =INDEX(B3:B32,MATCH(O40,O3:O32,0),1) -> D'ATTINO EDOARDO | P41: =INDEX(B3:B32,MATCH(P40,P3:P32,0),1) -> GAGLIARDINI DAVIDE

Sheet 1LB
A1: MODELLO | V1: LEGENDA
A2: N° | B2: Alunno | C2: Presente | D2: Sex | E2: Anno | F2: Peso | G2: Statura | H2: BMI | I2: S/D | K2: S/N/I | N2: Flessibilità | O2: Ldf | P2: Velocità | Q2: Note | S2: Sport | V2: COLONNA | W2: FUNZIONE | Y2: SIMBOLO
A3: 1 | B3: BELLONI VITTORIO | C3: X | D3: M | E3: 2002 | F3: 50.6 | G3: 163 | H3: =IF(C3 = "X",F3/(G3/100)^2,"") -> 19.0447514 | I3: D | K3: S | N3: -10 | O3: 162 | P3: 531 | Q3: =IF(AND(C3<>"X",B3<>""),"Assente",IF(AND(B3="",C3="X"),"??","")) ->  | R3: =IF(AND(C3="X",D3="M"),IF(H3<>"",IF(H3<20.7,"Sottopeso",IF(H3>27.8,"Sovrappeso","Normopeso")),""),IF(AND(C3="X",D3="F"),IF(H3<>"",IF(H3<19.1,"Sottopeso",IF(H3>27.3,"Sovrappeso","Normopeso")),""),"")) -> Sottopeso | V3: I-J | W3: MANCINO O DESTRO | Y3: S/D
A4: 2 | B4: BERNABE | C4: X | D4: F | E4: 2002 | F4: 50.7 | G4: 158 | H4: =IF(C4 = "X",F4/(G4/100)^2,"") -> 20.30924531 | I4: D | K4: N | N4: -8 | O4: 150 | P4: 615 | Q4: =IF(AND(C4<>"X",B4<>""),"Assente",IF(AND(B4="",C4="X"),"??","")) ->  | R4: =IF(AND(C4="X",D4="M"),IF(H4<>"",IF(H4<20.7,"Sottopeso",IF(H4>27.8,"Sovrappeso","Normopeso")),""),IF(AND(C4="X",D4="F"),IF(H4<>"",IF(H4<19.1,"Sottopeso",IF(H4>27.3,"Sovrappeso","Normopeso")),""),"")) -> Normopeso | V4: K-L-M | W4: SPORTIVO - NON SPORTIVO - INTERMEDIO | Y4: S/N/I
A5: 3 | B5: BRUGNOLI | C5: X | D5: M | E5: 2002 | F5: 57.9 | G5: 159 | H5: 22.90257506 | I5: D | K5: N | N5: -14 | O5: 164 | P5: 550 | R5: Normopeso | V5: O | W5: SALTO IN LUNGO DA FERMO | Y5: NUMERICO
A6: 4 | B6: CANTONE | C6: X | D6: M | E6: 2002 | F6: 64 | G6: 171 | H6: 21.88707637 | I6: D | K6: I | N6: 10 | O6: 214 | P6: 460 | R6: Normopeso | V6: SPORT | W6: ALUNNO SELEZIONATO PER SQUADRA | Y6: X
A7: 5 | B7: CAPORALI | D7: M | E7: 2001 | Q7: Assente
A8: 6 | B8: CHITI | C8: X | D8: M | E8: 2002 | F8: 70.3 | G8: 172 | H8: 23.76284478 | I8: D | K8: S | N8: 0 | O8: - | P8: - | R8: Normopeso | V8: TUTTI I DATI VANNO INSERITI IN FORMATO CAPSLOCK (MAIUSCOLO)
A9: 7 | B9: COEN | D9: M | E9: 2001 | I9: D | K9: I | Q9: Assente
A10: 8 | B10: D’ALESSANDRO | C10: X | D10: F | E10: 2002 | F10: 61.8 | G10: 172 | H10: 20.88967009 | I10: D | K10: I | N10: 26 | O10: 167 | P10: 563 | R10: Normopeso
A11: 9 | B11: DE VINCENZI | C11: X | D11: M | E11: 2002 | F11: 81.5 | G11: 177 | H11: 26.01423601 | I11: D | K11: S | N11: -3 | O11: 200 | P11: 475 | R11: Normopeso
A12: 10 | B12: EMIGLI | C12: X | D12: M | E12: 2001 | F12: 63.8 | G12: 177 | H12: 20.3645185 | I12: D | K12: S | N12: -22 | O12: 186 | P12: 466 | R12: Sottopeso
A13: 11 | B13: FIORETTO | C13: X | D13: M | E13: 2002 | F13: 53.9 | G13: 163 | H13: 20.28680041 | I13: D | K13: I | N13: -7 | O13: 168 | P13: 550 | R13: Sottopeso
A14: 12 | B14: GASPARRI | D14: M | E14: 2001 | Q14: Assente
A15: 13 | B15: MANGIONE | C15: X | D15: M | E15: 2003 | F15: 41.5 | G15: 159 | H15: 16.41548989 | I15: D | K15: I | N15: -23 | O15: 141 | P15: 650 | R15: Sottopeso
A16: 14 | B16: MELITO | C16: X | D16: F | E16: 2002 | F16: 59.4 | G16: 156 | H16: 24.40828402 | I16: D | K16: I | N16: 5 | O16: 138 | P16: 552 | R16: Normopeso
A17: 15 | B17: MINNEI | D17: M | E17: 2002 | Q17: Assente
A18: 16 | B18: NURUL | D18: F | E18: 2000 | Q18: Assente
A19: 17 | B19: PERONI | C19: X | D19: F | E19: 2002 | F19: 42.9 | G19: 155 | H19: 17.85639958 | I19: D | K19: I | N19: 25 | O19: - | P19: 573 | R19: Sottopeso
A20: 18 | B20: RENCRICCA | C20: X | D20: M | E20: 2003 | F20: 62.3 | G20: 163 | H20: 23.44837969 | I20: D | K20: S | N20: 1 | O20: 188 | P20: 524 | R20: Normopeso
A21: 19 | B21: ROMEO | C21: X | D21: M | E21: 2002 | F21: 48.8 | G21: 161 | H21: 18.82643417 | I21: D | K21: S | N21: 9 | O21: 205 | P21: - | R21: Sottopeso
A22: 20 | B22: RULLO | D22: M | E22: 2003 | Q22: Assente
A23: 21 | B23: BARTOLLI | C23: X | D23: M | E23: 2001 | F23: 69.1 | G23: 176 | H23: 22.30759298 | K23: S | N23: -8 | O23: 227 | P23: 425 | R23: Normopeso
A24: 22 | B24: CANTADORI | E24: 2002 | Q24: Assente
A25: 23 | B25: DI MICHELE | C25: X | D25: M | E25: 2002 | F25: 71.7 | G25: 175 | H25: 23.4122449 | K25: S | N25: -4 | O25: 228 | P25: 564 | R25: Normopeso
A26: 24
A27: 25
A28: 26
A29: 27
A30: 28
A31: 29
A32: 30
B35: Alunni : | C35: =COUNTIF(B3:B32,"<>"&"") -> 24 | I35: D | J35: S | K35: S | L35: N | M35: I
B36: Media | C36: =COUNTIF(C3:C32,"X")/C35 -> 0.6666666667 | D36: =(COUNTIFS(D3:D32,"M",C3:C32,"X")+COUNTIFS(D3:D32,"F",C3:C32,"X"))/C39 -> 1 | E36: =AVERAGE(E3:E32) -> 2001.826087 | F36: =AVERAGEIFS(F3:F32,C3:C32,"X") -> 59.3875 | G36: =AVERAGEIFS(G3:G32,C3:C32,"X") -> 166.0625 | H36: =AVERAGEIFS(H3:H32,C3:C32,"X") -> 21.38353395 | I36: =(COUNTIFS(I3:I32,"D",C3:C32,"X")/C39) -> 0.875 | J36: =(COUNTIFS(I3:I32,"S",C3:C32,"X")/C39) -> 0 | K36: =(COUNTIFS(K3:K32,"S",C3:C32,"X")/C39) -> 0.5 | L36: =(COUNTIFS(K3:K32,"N",C3:C32,"X")/C39) -> 0.125 | M36: =(COUNTIFS(K3:K32,"I",C3:C32,"X")/C39) -> 0.375 | N36: =AVERAGEIFS(N3:N32,C3:C32,"X") -> -1.4375 | O36: =AVERAGEIFS(O3:O32,C3:C32,"X") -> 181.2857143 | P36: =AVERAGEIFS(P3:P32,C3:C32,"X") -> 535.5714286
B37: Media maschi | C37: =COUNTIFS(C3:C32,"X",D3:D32,"M")/C35 -> 0.5 | D37: =COUNTIFS(D3:D32,"M",C3:C32,"X")/C39 -> 0.75 | E37: =AVERAGEIFS(E3:E32,C3:C32,"X",D3:D32,"M") -> 2002 | F37: =AVERAGEIFS(F3:F32,C3:C32,"X",D3:D32,"M") -> 61.28333333 | G37: =AVERAGEIFS(G3:G32,C3:C32,"X",D3:D32,"M") -> 168 | H37: =AVERAGEIFS(H3:H32,C3:C32,"X",D3:D32,"M") -> 21.55607868 | I37: =(COUNTIFS(I3:I32,"D",C3:C32,"X",D3:D32,"M")/COUNTIFS(D3:D32,"M",C3:C32,"X")) -> 0.8333333333 | J37: =(COUNTIFS(I3:I32,"S",C3:C32,"X",D3:D32,"M")/COUNTIFS(D3:D32,"M",C3:C32,"X")) -> 0 | K37: =(COUNTIFS(K3:K32,"S",C3:C32,"X",D3:D32,"M")/COUNTIFS(D3:D32,"M",C3:C32,"X")) -> 0.6666666667 | L37: =(COUNTIFS(K3:K32,"N",C3:C32,"X",D3:D32,"M")/COUNTIFS(D3:D32,"M",C3:C32,"X")) -> 0.08333333333 | M37: =(COUNTIFS(K3:K32,"I",C3:C32,"X",D3:D32,"M")/COUNTIFS(D3:D32,"M",C3:C32,"X")) -> 0.25 | N37: =AVERAGEIFS(N3:N32,C3:C32,"X",D3:D32,"M") -> -5.916666667 | O37: =AVERAGEIFS(O3:O32,C3:C32,"X",D3:D32,"M") -> 189.3636364 | P37: =AVERAGEIFS(P3:P32,C3:C32,"X",D3:D32,"M") -> 519.5
B38: Media femmine | C38: =COUNTIFS(C4:C32,"X",D4:D32,"F")/C35 -> 0.1666666667 | D38: =COUNTIFS(D3:D32,"F",C3:C32,"X")/C39 -> 0.25 | E38: =AVERAGEIFS(E3:E32,C3:C32,"X",D3:D32,"F") -> 2002 | F38: =AVERAGEIFS(F3:F32,C3:C32,"X",D3:D32,"F") -> 53.7 | G38: =AVERAGEIFS(G3:G32,C3:C32,"X",D3:D32,"F") -> 160.25 | H38: =AVERAGEIFS(H3:H32,C3:C32,"X",D3:D32,"F") -> 20.86589975 | I38: =(COUNTIFS(I3:I32,"D",C3:C32,"X",D3:D32,"F")/COUNTIFS(D3:D32,"F",C3:C32,"X")) -> 1 | J38: =(COUNTIFS(I3:I32,"S",C3:C32,"X",D3:D32,"F")/COUNTIFS(D3:D32,"F",C3:C32,"X")) -> 0 | K38: =(COUNTIFS(K3:K32,"S",C3:C32,"X",D3:D32,"F")/COUNTIFS(D3:D32,"F",C3:C32,"X")) -> 0 | L38: =(COUNTIFS(K3:K32,"N",C3:C32,"X",D3:D32,"F")/COUNTIFS(D3:D32,"F",C3:C32,"X")) -> 0.25 | M38: =(COUNTIFS(K3:K32,"I",C3:C32,"X",D3:D32,"F")/COUNTIFS(D3:D32,"F",C3:C32,"X")) -> 0.75 | N38: =AVERAGEIFS(N3:N32,C3:C32,"X",D3:D32,"F") -> 12 | O38: =AVERAGEIFS(O3:O32,C3:C32,"X",D3:D32,"F") -> 151.6666667 | P38: =AVERAGEIFS(P3:P32,C3:C32,"X",D3:D32,"F") -> 575.75
B39: Presenti | C39: =COUNTIF(C3:C32,"X") -> 16 | N39: Record
N40: =MAX(N3:N32) -> 26 | O40: =MAX(O3:O32) -> 228 | P40: =MIN(P3:P32) -> 425
N41: =INDEX(B3:B32,MATCH(N40,N3:N32,0),1) -> D’ALESSANDRO | O41: =INDEX(B3:B32,MATCH(O40,O3:O32,0),1) -> DI MICHELE | P41: =INDEX(B3:B32,MATCH(P40,P3:P32,0),1) -> BARTOLLI

Sheet 1EA
A1: MODELLO | V1: LEGENDA
A2: N° | B2: Alunno | C2: Presente | D2: Sex | E2: Anno | F2: Peso | G2: Statura | H2: BMI | I2: S/D | K2: S/N/I | N2: Flessibilità | O2: Ldf | P2: Velocità | Q2: Note | S2: Sport | V2: COLONNA | W2: FUNZIONE | Y2: SIMBOLO
A3: 1 | B3: BECCHERLE MARIA SOLE | C3: X | D3: F | E3: 2003 | F3: 52.2 | G3: 157 | H3: =IF(C3 = "X",F3/(G3/100)^2,"") -> 21.17732971 | I3: D | K3: I | N3: -10 | O3: 150 | P3: 556 | Q3: =IF(AND(C3<>"X",B3<>""),"Assente",IF(AND(B3="",C3="X"),"??","")) ->  | R3: =IF(AND(C3="X",D3="M"),IF(H3<>"",IF(H3<20.7,"Sottopeso",IF(H3>27.8,"Sovrappeso","Normopeso")),""),IF(AND(C3="X",D3="F"),IF(H3<>"",IF(H3<19.1,"Sottopeso",IF(H3>27.3,"Sovrappeso","Normopeso")),""),"")) -> Normopeso | V3: I-J | W3: MANCINO O DESTRO | Y3: S/D
A4: 2 | B4: BIANCHI MATTEO | C4: X | D4: M | E4: 2002 | F4: 82.8 | G4: 165 | H4: =IF(C4 = "X",F4/(G4/100)^2,"") -> 30.41322314 | I4: D | K4: N | N4: -7 | Q4: =IF(AND(C4<>"X",B4<>""),"Assente",IF(AND(B4="",C4="X"),"??","")) ->  | R4: =IF(AND(C4="X",D4="M"),IF(H4<>"",IF(H4<20.7,"Sottopeso",IF(H4>27.8,"Sovrappeso","Normopeso")),""),IF(AND(C4="X",D4="F"),IF(H4<>"",IF(H4<19.1,"Sottopeso",IF(H4>27.3,"Sovrappeso","Normopeso")),""),"")) -> Sovrappeso | V4: K-L-M | W4: SPORTIVO - NON SPORTIVO - INTERMEDIO | Y4: S/N/I
A5: 3 | B5: BONGINI RICCARDO | C5: X | D5: M | E5: 2002 | F5: 77.7 | G5: 180 | H5: 23.98148148 | I5: D | K5: S | N5: -13 | R5: Normopeso | V5: O | W5: SALTO IN LUNGO DA FERMO | Y5: NUMERICO
A6: 4 | B6: BONTOI GIORGIIO | C6: X | D6: M | E6: 2001 | F6: 65.9 | G6: 178 | H6: 20.79914152 | I6: S | K6: I | N6: -10 | O6: 242 | P6: 469 | R6: Normopeso | V6: SPORT | W6: ALUNNO SELEZIONATO PER SQUADRA | Y6: X
A7: 5 | B7: CAPIZZI SERGIO | C7: X | D7: M | E7: 2002 | F7: 68.5 | G7: 168 | H7: 24.27012472 | I7: D | K7: S | N7: 15 | O7: 162 | P7: 510 | R7: Normopeso
A8: 6 | B8: CARDONE EMANUELE | C8: X | D8: M | E8: 2002 | F8: 52.5 | G8: 172 | H8: 17.74607896 | I8: D | K8: I | N8: -19 | R8: Sottopeso | V8: TUTTI I DATI VANNO INSERITI IN FORMATO CAPSLOCK (MAIUSCOLO)
A9: 7 | B9: CATALANO LORENZO | C9: X | D9: M | E9: 2002 | F9: 56.8 | G9: 174 | H9: 18.76073458 | I9: D | K9: S | N9: -15 | O9: 217 | P9: 471 | R9: Sottopeso
A10: 8 | B10: CATALETA MARCO | C10: X | D10: M | E10: 2002 | F10: 81.1 | G10: 167 | H10: 29.07956542 | I10: D | K10: N | N10: -24 | O10: 153 | P10: 565 | R10: Sovrappeso
A11: 9 | B11: COCCIA VALERIO | C11: X | D11: M | E11: 2002 | F11: 53.9 | G11: 163 | H11: 20.28680041 | I11: D | K11: S | N11: 0 | O11: 175 | P11: 547 | R11: Sottopeso
A12: 10 | B12: CUOMO GIULIA | C12: X | D12: F | E12: 2002 | F12: 52.2 | G12: 152 | H12: 22.5934903 | I12: D | K12: S | N12: 11 | O12: 152 | P12: 578 | R12: Normopeso
A13: 11 | B13: DI FILIPPO GIACOMO | C13: X | D13: M | E13: 2002 | F13: 49.8 | G13: 166 | H13: 18.07228916 | I13: D | K13: I | N13: -25 | O13: 187 | P13: 488 | R13: Sottopeso
A14: 12 | B14: D'UBALDO MAX | E14: 2001 | Q14: Assente
A15: 13 | B15: ESPOSTO MANUEL ANTONIO | C15: X | D15: M | E15: 2000 | F15: 47 | G15: 173 | H15: 15.7038324 | I15: D | K15: N | N15: -2 | O15: 187 | P15: 485 | R15: Sottopeso
A16: 14 | B16: FANFONI ILARIA | E16: 1998 | Q16: Assente
A17: 15 | B17: FREZZA MIRKO | E17: 2001 | Q17: Assente
A18: 16 | B18: GIANFELICI BEATRICE | C18: X | D18: F | E18: 2002 | F18: 51.4 | G18: 167 | H18: 18.43020546 | I18: D | K18: S | N18: 18 | O18: 202 | P18: 487 | R18: Sottopeso
A19: 17 | B19: LEMBO PIERLUIGI | C19: X | D19: M | E19: 2002 | F19: 74.5 | G19: 171 | H19: 25.47792483 | I19: D | K19: I | N19: -6 | O19: 164 | P19: 553 | R19: Normopeso
A20: 18 | B20: OTTAVIANI VALERIA | C20: X | D20: F | E20: 2002 | F20: 43.2 | G20: 158 | H20: 17.30491908 | I20: D | K20: S | N20: 1 | O20: 147 | P20: 550 | R20: Sottopeso
A21: 19 | B21: PAZ ANGELLA YVETTE | C21: X | D21: F | E21: 2001 | F21: 45.8 | G21: 148 | H21: 20.90942294 | I21: D | K21: S | N21: 15 | O21: 210 | P21: 557 | R21: Normopeso
A22: 20 | B22: PERINOTTO DAMIANO | C22: X | D22: M | E22: 2002 | F22: 67.8 | G22: 181 | H22: 20.69533897 | I22: D | K22: I | N22: -6 | R22: Sottopeso
A23: 21 | B23: VETTURINI MANUEL | C23: X | D23: M | E23: 2002 | F23: 61.1 | G23: 171 | H23: 20.89531822 | I23: D | K23: I | N23: -9 | R23: Normopeso
A24: 22
A25: 23
A26: 24
A27: 25
A28: 26
A29: 27
A30: 28
A31: 29
A32: 30
B35: Alunni : | C35: =COUNTIF(B3:B32,"<>"&"") -> 21 | I35: D | J35: S | K35: S | L35: N | M35: I
B36: Media | C36: =COUNTIF(C3:C32,"X")/C35 -> 0.8571428571 | D36: =(COUNTIFS(D3:D32,"M",C3:C32,"X")+COUNTIFS(D3:D32,"F",C3:C32,"X"))/C39 -> 1 | E36: =AVERAGE(E3:E32) -> 2001.571429 | F36: =AVERAGEIFS(F3:F32,C3:C32,"X") -> 60.23333333 | G36: =AVERAGEIFS(G3:G32,C3:C32,"X") -> 167.2777778 | H36: =AVERAGEIFS(H3:H32,C3:C32,"X") -> 21.47762341 | I36: =(COUNTIFS(I3:I32,"D",C3:C32,"X")/C39) -> 0.9444444444 | J36: =(COUNTIFS(I3:I32,"S",C3:C32,"X")/C39) -> 0.05555555556 | K36: =(COUNTIFS(K3:K32,"S",C3:C32,"X")/C39) -> 0.4444444444 | L36: =(COUNTIFS(K3:K32,"N",C3:C32,"X")/C39) -> 0.1666666667 | M36: =(COUNTIFS(K3:K32,"I",C3:C32,"X")/C39) -> 0.3888888889 | N36: =AVERAGEIFS(N3:N32,C3:C32,"X") -> -4.777777778 | O36: =AVERAGEIFS(O3:O32,C3:C32,"X") -> 180.6153846 | P36: =AVERAGEIFS(P3:P32,C3:C32,"X") -> 524.3076923
B37: Media maschi | C37: =COUNTIFS(C3:C32,"X",D3:D32,"M")/C35 -> 0.619047619 | D37: =COUNTIFS(D3:D32,"M",C3:C32,"X")/C39 -> 0.7222222222 | E37: =AVERAGEIFS(E3:E32,C3:C32,"X",D3:D32,"M") -> 2001.769231 | F37: =AVERAGEIFS(F3:F32,C3:C32,"X",D3:D32,"M") -> 64.56923077 | G37: =AVERAGEIFS(G3:G32,C3:C32,"X",D3:D32,"M") -> 171.4615385 | H37: =AVERAGEIFS(H3:H32,C3:C32,"X",D3:D32,"M") -> 22.01398875 | I37: =(COUNTIFS(I3:I32,"D",C3:C32,"X",D3:D32,"M")/COUNTIFS(D3:D32,"M",C3:C32,"X")) -> 0.9230769231 | J37: =(COUNTIFS(I3:I32,"S",C3:C32,"X",D3:D32,"M")/COUNTIFS(D3:D32,"M",C3:C32,"X")) -> 0.07692307692 | K37: =(COUNTIFS(K3:K32,"S",C3:C32,"X",D3:D32,"M")/COUNTIFS(D3:D32,"M",C3:C32,"X")) -> 0.3076923077 | L37: =(COUNTIFS(K3:K32,"N",C3:C32,"X",D3:D32,"M")/COUNTIFS(D3:D32,"M",C3:C32,"X")) -> 0.2307692308 | M37: =(COUNTIFS(K3:K32,"I",C3:C32,"X",D3:D32,"M")/COUNTIFS(D3:D32,"M",C3:C32,"X")) -> 0.4615384615 | N37: =AVERAGEIFS(N3:N32,C3:C32,"X",D3:D32,"M") -> -9.307692308 | O37: =AVERAGEIFS(O3:O32,C3:C32,"X",D3:D32,"M") -> 185.875 | P37: =AVERAGEIFS(P3:P32,C3:C32,"X",D3:D32,"M") -> 511
B38: Media femmine | C38: =COUNTIFS(C4:C32,"X",D4:D32,"F")/C35 -> 0.1904761905 | D38: =COUNTIFS(D3:D32,"F",C3:C32,"X")/C39 -> 0.2777777778 | E38: =AVERAGEIFS(E3:E32,C3:C32,"X",D3:D32,"F") -> 2002 | F38: =AVERAGEIFS(F3:F32,C3:C32,"X",D3:D32,"F") -> 48.96 | G38: =AVERAGEIFS(G3:G32,C3:C32,"X",D3:D32,"F") -> 156.4 | H38: =AVERAGEIFS(H3:H32,C3:C32,"X",D3:D32,"F") -> 20.0830735 | I38: =(COUNTIFS(I3:I32,"D",C3:C32,"X",D3:D32,"F")/COUNTIFS(D3:D32,"F",C3:C32,"X")) -> 1 | J38: =(COUNTIFS(I3:I32,"S",C3:C32,"X",D3:D32,"F")/COUNTIFS(D3:D32,"F",C3:C32,"X")) -> 0 | K38: =(COUNTIFS(K3:K32,"S",C3:C32,"X",D3:D32,"F")/COUNTIFS(D3:D32,"F",C3:C32,"X")) -> 0.8 | L38: =(COUNTIFS(K3:K32,"N",C3:C32,"X",D3:D32,"F")/COUNTIFS(D3:D32,"F",C3:C32,"X")) -> 0 | M38: =(COUNTIFS(K3:K32,"I",C3:C32,"X",D3:D32,"F")/COUNTIFS(D3:D32,"F",C3:C32,"X")) -> 0.2 | N38: =AVERAGEIFS(N3:N32,C3:C32,"X",D3:D32,"F") -> 7 | O38: =AVERAGEIFS(O3:O32,C3:C32,"X",D3:D32,"F") -> 172.2 | P38: =AVERAGEIFS(P3:P32,C3:C32,"X",D3:D32,"F") -> 545.6
B39: Presenti | C39: =COUNTIF(C3:C32,"X") -> 18 | N39: Record
N40: =MAX(N3:N32) -> 18 | O40: =MAX(O3:O32) -> 242 | P40: =MIN(P3:P32) -> 469
N41: =INDEX(B3:B32,MATCH(N40,N3:N32,0),1) -> GIANFELICI BEATRICE | O41: =INDEX(B3:B32,MATCH(O40,O3:O32,0),1) -> BONTOI GIORGIIO | P41: =INDEX(B3:B32,MATCH(P40,P3:P32,0),1) -> BONTOI GIORGIIO

Sheet 1EB
A1: MODELLO | V1: LEGENDA
A2: N° | B2: Alunno | C2: Presente | D2: Sex | E2: Anno | F2: Peso | G2: Statura | H2: BMI | I2: S/D | K2: S/N/I | N2: Flessibilità | O2: Ldf | P2: Velocità | Q2: Note | S2: Sport | V2: COLONNA | W2: FUNZIONE | Y2: SIMBOLO
A3: 1 | B3: BARBERIS GIULIA | D3: F | E3: 2002 | H3: =IF(C3 = "X",F3/(G3/100)^2,"") ->  | Q3: =IF(AND(C3<>"X",B3<>""),"Assente",IF(AND(B3="",C3="X"),"??","")) -> Assente | R3: =IF(AND(C3="X",D3="M"),IF(H3<>"",IF(H3<20.7,"Sottopeso",IF(H3>27.8,"Sovrappeso","Normopeso")),""),IF(AND(C3="X",D3="F"),IF(H3<>"",IF(H3<19.1,"Sottopeso",IF(H3>27.3,"Sovrappeso","Normopeso")),""),"")) ->  | V3: I-J | W3: MANCINO O DESTRO | Y3: S/D
A4: 2 | B4: CARDILLI LAVINIA | C4: X | D4: F | E4: 2002 | F4: 51 | G4: 163 | H4: =IF(C4 = "X",F4/(G4/100)^2,"") -> 19.1953028 | I4: D | K4: S | N4: -13 | O4: - | P4: - | Q4: =IF(AND(C4<>"X",B4<>""),"Assente",IF(AND(B4="",C4="X"),"??","")) ->  | R4: =IF(AND(C4="X",D4="M"),IF(H4<>"",IF(H4<20.7,"Sottopeso",IF(H4>27.8,"Sovrappeso","Normopeso")),""),IF(AND(C4="X",D4="F"),IF(H4<>"",IF(H4<19.1,"Sottopeso",IF(H4>27.3,"Sovrappeso","Normopeso")),""),"")) -> Normopeso | V4: K-L-M | W4: SPORTIVO - NON SPORTIVO - INTERMEDIO | Y4: S/N/I
A5: 3 | B5: CHIERICONI ANDREADANTE | C5: X | D5: M | E5: 2002 | F5: 52 | G5: 169 | H5: 18.20664543 | I5: D | K5: N | N5: -32 | O5: 191 | P5: 491 | R5: Sottopeso | V5: O | W5: SALTO IN LUNGO DA FERMO | Y5: NUMERICO
A6: 4 | B6: CLEMENTI MARCO | C6: X | D6: M | E6: 2002 | F6: 61.5 | G6: 167 | H6: 22.05170497 | I6: D | K6: S | N6: 13 | O6: 245 | P6: 463 | R6: Normopeso | V6: SPORT | W6: ALUNNO SELEZIONATO PER SQUADRA | Y6: X
A7: 5 | B7: CONTINI JACOPO | C7: X | D7: M | E7: 2003 | F7: 60.3 | G7: 166 | H7: 21.88271157 | I7: D | K7: S | N7: -2 | O7: 200 | P7: 471 | R7: Normopeso
A8: 6 | B8: D'ALENA VLADIMIR | C8: X | D8: M | E8: 2001 | F8: 41.4 | G8: 156 | H8: 17.01183432 | I8: D | K8: S | N8: -8 | O8: 194 | P8: 544 | R8: Sottopeso | V8: TUTTI I DATI VANNO INSERITI IN FORMATO CAPSLOCK (MAIUSCOLO)
A9: 7 | B9: DE TORRES ARTHIANN | C9: X | D9: M | E9: 2000 | F9: 64 | G9: 178 | H9: 20.19946976 | I9: D | K9: N | N9: -21 | O9: 197 | P9: 528 | R9: Sottopeso
A10: 8 | B10: DI NEPI SAUL | C10: X | D10: M | E10: 2001 | F10: 67.5 | G10: 163 | H10: 25.40554782 | I10: D | K10: S | N10: -27 | O10: 138 | P10: 663 | R10: Normopeso
A11: 9 | B11: FALASCA MICHELA | D11: F | E11: 2002 | Q11: Assente
A12: 10 | B12: GUANZON JESTEN | C12: X | D12: F | E12: 2001 | F12: 61.8 | G12: 151 | H12: 27.10407438 | I12: D | K12: N | N12: -21 | O12: 152 | P12: 656 | R12: Normopeso
A13: 11 | B13: HERNANDEZ INGRID | D13: M | E13: 1997 | Q13: Assente
A14: 12 | B14: MANALO KRISTINE | C14: X | D14: M | E14: 2002 | F14: 38.7 | G14: 143 | H14: 18.92513081 | I14: D | K14: N | N14: -18 | O14: 196 | P14: 528 | R14: Sottopeso
A15: 13 | B15: MARZIALE LUDOVICO | C15: X | D15: M | E15: 2002 | F15: 71.6 | G15: 171 | H15: 24.48616668 | I15: D | K15: S | N15: 9 | O15: 209 | P15: 472 | R15: Normopeso
A16: 14 | B16: MATTIACCI FEDERICO | C16: X | D16: M | E16: 2002 | F16: 77.5 | G16: 174 | H16: 25.59783327 | I16: D | K16: S | N16: 6 | O16: 213 | P16: 440 | R16: Normopeso
A17: 15 | B17: MELONI SABRINA | D17: F | E17: 2001 | I17: D | Q17: Assente
A18: 16 | B18: MORETTI GIULIA | D18: F | E18: 2002 | Q18: Assente
A19: 17 | B19: PAULE GENE ANGELO | D19: M | E19: 1997 | Q19: Assente
A20: 18 | B20: PIETROLATI RICCARDO | C20: X | D20: M | E20: 2002 | F20: 77.3 | G20: 179 | H20: 24.12533941 | I20: D | K20: S | N20: 12 | O20: 221 | P20: 475 | R20: Normopeso
A21: 19 | B21: POGGESI ROBERTA | C21: X | D21: F | E21: 2001 | F21: 49.5 | G21: 150 | H21: 22 | I21: D | K21: N | N21: 5 | O21: 139 | P21: 656 | R21: Normopeso
A22: 20 | B22: PRUNESTI' COSTANTINO | C22: X | D22: M | E22: 2001 | F22: 65 | G22: 178 | H22: 20.51508648 | I22: D | K22: N | N22: 19 | O22: 261 | P22: 446 | R22: Sottopeso
A23: 21 | B23: RAINALDI FRANCESCO | C23: X | D23: M | E23: 2002 | F23: 62.1 | G23: 167 | H23: 22.26684356 | I23: D | K23: S | N23: 4 | O23: 198 | P23: 495 | R23: Normopeso
A24: 22 | B24: RIPANI LETIZIA | C24: X | D24: F | E24: 2002 | F24: 52.2 | G24: 159 | H24: 20.64791741 | I24: S | K24: S | N24: 10 | O24: 155 | P24: 544 | R24: Normopeso
A25: 23 | B25: SONNINO ANGELO | D25: M | E25: 2001 | Q25: Assente
A26: 24 | B26: VALENTINI ANDREA | C26: X | D26: M | E26: 2001 | F26: 52.9 | G26: 164 | H26: 19.66835217 | I26: D | K26: S | N26: 16 | O26: 247 | P26: 462 | R26: Sottopeso
A27: 25 | B27: SHAMMI SHAELA | C27: X | D27: F | E27: 2002 | F27: 82 | G27: 156 | H27: 33.69493754 | I27: D | K27: N | N27: -11 | O27: 92 | P27: 734 | R27: Sovrappeso
A28: 26 | B28: VACCARI CHIARA | E28: 2000 | Q28: Assente
A29: 27
A30: 28
A31: 29
A32: 30
B35: Alunni : | C35: =COUNTIF(B3:B32,"<>"&"") -> 26 | I35: D | J35: S | K35: S | L35: N | M35: I
B36: Media | C36: =COUNTIF(C3:C32,"X")/C35 -> 0.6923076923 | D36: =(COUNTIFS(D3:D32,"M",C3:C32,"X")+COUNTIFS(D3:D32,"F",C3:C32,"X"))/C39 -> 1 | E36: =AVERAGE(E3:E32) -> 2001.192308 | F36: =AVERAGEIFS(F3:F32,C3:C32,"X") -> 60.46111111 | G36: =AVERAGEIFS(G3:G32,C3:C32,"X") -> 164.1111111 | H36: =AVERAGEIFS(H3:H32,C3:C32,"X") -> 22.38804991 | I36: =(COUNTIFS(I3:I32,"D",C3:C32,"X")/C39) -> 0.9444444444 | J36: =(COUNTIFS(I3:I32,"S",C3:C32,"X")/C39) -> 0.05555555556 | K36: =(COUNTIFS(K3:K32,"S",C3:C32,"X")/C39) -> 0.6111111111 | L36: =(COUNTIFS(K3:K32,"N",C3:C32,"X")/C39) -> 0.3888888889 | M36: =(COUNTIFS(K3:K32,"I",C3:C32,"X")/C39) -> 0 | N36: =AVERAGEIFS(N3:N32,C3:C32,"X") -> -3.277777778 | O36: =AVERAGEIFS(O3:O32,C3:C32,"X") -> 191.0588235 | P36: =AVERAGEIFS(P3:P32,C3:C32,"X") -> 533.4117647
B37: Media maschi | C37: =COUNTIFS(C3:C32,"X",D3:D32,"M")/C35 -> 0.5 | D37: =COUNTIFS(D3:D32,"M",C3:C32,"X")/C39 -> 0.7222222222 | E37: =AVERAGEIFS(E3:E32,C3:C32,"X",D3:D32,"M") -> 2001.615385 | F37: =AVERAGEIFS(F3:F32,C3:C32,"X",D3:D32,"M") -> 60.90769231 | G37: =AVERAGEIFS(G3:G32,C3:C32,"X",D3:D32,"M") -> 167.3076923 | H37: =AVERAGEIFS(H3:H32,C3:C32,"X",D3:D32,"M") -> 21.56482048 | I37: =(COUNTIFS(I3:I32,"D",C3:C32,"X",D3:D32,"M")/COUNTIFS(D3:D32,"M",C3:C32,"X")) -> 1 | J37: =(COUNTIFS(I3:I32,"S",C3:C32,"X",D3:D32,"M")/COUNTIFS(D3:D32,"M",C3:C32,"X")) -> 0 | K37: =(COUNTIFS(K3:K32,"S",C3:C32,"X",D3:D32,"M")/COUNTIFS(D3:D32,"M",C3:C32,"X")) -> 0.6923076923 | L37: =(COUNTIFS(K3:K32,"N",C3:C32,"X",D3:D32,"M")/COUNTIFS(D3:D32,"M",C3:C32,"X")) -> 0.3076923077 | M37: =(COUNTIFS(K3:K32,"I",C3:C32,"X",D3:D32,"M")/COUNTIFS(D3:D32,"M",C3:C32,"X")) -> 0 | N37: =AVERAGEIFS(N3:N32,C3:C32,"X",D3:D32,"M") -> -2.230769231 | O37: =AVERAGEIFS(O3:O32,C3:C32,"X",D3:D32,"M") -> 208.4615385 | P37: =AVERAGEIFS(P3:P32,C3:C32,"X",D3:D32,"M") -> 498.3076923
B38: Media femmine | C38: =COUNTIFS(C4:C32,"X",D4:D32,"F")/C35 -> 0.1923076923 | D38: =COUNTIFS(D3:D32,"F",C3:C32,"X")/C39 -> 0.2777777778 | E38: =AVERAGEIFS(E3:E32,C3:C32,"X",D3:D32,"F") -> 2001.6 | F38: =AVERAGEIFS(F3:F32,C3:C32,"X",D3:D32,"F") -> 59.3 | G38: =AVERAGEIFS(G3:G32,C3:C32,"X",D3:D32,"F") -> 155.8 | H38: =AVERAGEIFS(H3:H32,C3:C32,"X",D3:D32,"F") -> 24.52844643 | I38: =(COUNTIFS(I3:I32,"D",C3:C32,"X",D3:D32,"F")/COUNTIFS(D3:D32,"F",C3:C32,"X")) -> 0.8 | J38: =(COUNTIFS(I3:I32,"S",C3:C32,"X",D3:D32,"F")/COUNTIFS(D3:D32,"F",C3:C32,"X")) -> 0.2 | K38: =(COUNTIFS(K3:K32,"S",C3:C32,"X",D3:D32,"F")/COUNTIFS(D3:D32,"F",C3:C32,"X")) -> 0.4 | L38: =(COUNTIFS(K3:K32,"N",C3:C32,"X",D3:D32,"F")/COUNTIFS(D3:D32,"F",C3:C32,"X")) -> 0.6 | M38: =(COUNTIFS(K3:K32,"I",C3:C32,"X",D3:D32,"F")/COUNTIFS(D3:D32,"F",C3:C32,"X")) -> 0 | N38: =AVERAGEIFS(N3:N32,C3:C32,"X",D3:D32,"F") -> -6 | O38: =AVERAGEIFS(O3:O32,C3:C32,"X",D3:D32,"F") -> 134.5 | P38: =AVERAGEIFS(P3:P32,C3:C32,"X",D3:D32,"F") -> 647.5
B39: Presenti | C39: =COUNTIF(C3:C32,"X") -> 18 | N39: Record
N40: =MAX(N3:N32) -> 19 | O40: =MAX(O3:O32) -> 261 | P40: =MIN(P3:P32) -> 440
N41: =INDEX(B3:B32,MATCH(N40,N3:N32,0),1) -> PRUNESTI' COSTANTINO | O41: =INDEX(B3:B32,MATCH(O40,O3:O32,0),1) -> PRUNESTI' COSTANTINO | P41: =INDEX(B3:B32,MATCH(P40,P3:P32,0),1) -> MATTIACCI FEDERICO

Sheet 1HA
A1: MODELLO | V1: LEGENDA
A2: N° | B2: Alunno | C2: Presente | D2: Sex | E2: Anno | F2: Peso | G2: Statura | H2: BMI | I2: S/D | K2: S/N/I | N2: Flessibilità | O2: Ldf | P2: Velocità | Q2: Note | S2: Sport | V2: COLONNA | W2: FUNZIONE | Y2: SIMBOLO
A3: 1 | B3: ABD EL MALAK ANGELA HANY YACOUBHI | C3: X | D3: F | E3: 2002 | H3: =IF(C3 = "X",F3/(G3/100)^2,"") ->  | I3: D | K3: I | N3: -7 | O3: 149 | P3: 687 | Q3: =IF(AND(C3<>"X",B3<>""),"Assente",IF(AND(B3="",C3="X"),"??","")) ->  | R3: =IF(AND(C3="X",D3="M"),IF(H3<>"",IF(H3<20.7,"Sottopeso",IF(H3>27.8,"Sovrappeso","Normopeso")),""),IF(AND(C3="X",D3="F"),IF(H3<>"",IF(H3<19.1,"Sottopeso",IF(H3>27.3,"Sovrappeso","Normopeso")),""),"")) ->  | V3: I-J | W3: MANCINO O DESTRO | Y3: S/D
A4: 2 | B4: BARRECA BENEDETTA | D4: F | E4: 2002 | H4: =IF(C4 = "X",F4/(G4/100)^2,"") ->  | I4: D | K4: I | Q4: =IF(AND(C4<>"X",B4<>""),"Assente",IF(AND(B4="",C4="X"),"??","")) -> Assente | R4: =IF(AND(C4="X",D4="M"),IF(H4<>"",IF(H4<20.7,"Sottopeso",IF(H4>27.8,"Sovrappeso","Normopeso")),""),IF(AND(C4="X",D4="F"),IF(H4<>"",IF(H4<19.1,"Sottopeso",IF(H4>27.3,"Sovrappeso","Normopeso")),""),"")) ->  | V4: K-L-M | W4: SPORTIVO - NON SPORTIVO - INTERMEDIO | Y4: S/N/I
A5: 3 | B5: BONIZIO ELISA | C5: X | D5: F | E5: 2002 | F5: 49.2 | G5: 156 | H5: 20.21696252 | I5: D | K5: I | N5: 17 | O5: 142 | P5: 570 | R5: Normopeso | V5: O | W5: SALTO IN LUNGO DA FERMO | Y5: NUMERICO
A6: 4 | B6: DE STEFANO SALVATORE | C6: X | D6: M | E6: 2001 | F6: 65.6 | G6: 161 | H6: 25.3076656 | I6: D | K6: S | N6: -5 | O6: 132 | P6: 603 | R6: Normopeso | V6: SPORT | W6: ALUNNO SELEZIONATO PER SQUADRA | Y6: X
A7: 5 | B7: DI TERLIZZI ARIANNA | C7: X | D7: F | E7: 2002 | F7: 51 | G7: 160 | H7: 19.921875 | I7: D | K7: S | N7: 0 | O7: 167 | P7: 518 | R7: Normopeso
A8: 6 | B8: FARRO IYCEE ROSE CASTILLO | C8: X | D8: F | E8: 2002 | F8: 50.7 | G8: 159 | H8: 20.05458645 | I8: D | K8: N | N8: 2 | O8: 176 | P8: 581 | R8: Normopeso | V8: TUTTI I DATI VANNO INSERITI IN FORMATO CAPSLOCK (MAIUSCOLO)
A9: 7 | B9: GALUPPI RICCARDO | Q9: Assente
A10: 8 | B10: GUILLEN FAJARDO SANTIAGO JOSUE | D10: M | E10: 1999 | I10: S | K10: I | Q10: Assente
A11: 9 | B11: HABIB EISSA PAOLO | Q11: Assente
A12: 10 | B12: HOWLADAR RABBI | C12: X | D12: M | E12: 2001 | F12: 60.8 | G12: 168 | H12: 21.54195011 | I12: D | K12: S | N12: -5 | O12: 215 | R12: Normopeso
A13: 11 | B13: LUONGO KEVIN | E13: 2001 | I13: S | K13: S | Q13: Assente
A14: 12 | B14: MARIANI VALERIO | C14: X | D14: M | E14: 2002 | I14: D | K14: N | O14: 165 | P14: 610
A15: 13 | B15: MATURANA RIVADERA SARA NICOLE | C15: X | D15: F | E15: 2001 | F15: 67 | G15: 165 | H15: 24.6097337 | I15: D | K15: I | N15: 9 | O15: 156 | P15: 587 | R15: Normopeso
A16: 14 | B16: MELIS NADIN | C16: X | D16: F | E16: 2002 | F16: 54.4 | G16: 157 | H16: 22.06986085 | I16: D | K16: S | N16: -10 | O16: 152 | P16: 562 | R16: Normopeso
A17: 15 | B17: MONTRONE CLARA | I17: D | Q17: Assente
A18: 16 | B18: PERUGINI GAIA | C18: X | D18: F | E18: 2003 | F18: 53.3 | G18: 162 | H18: 20.30940405 | I18: D | K18: S | N18: 18 | O18: 157 | P18: 593 | R18: Normopeso
A19: 17 | B19: RICCI FLAVIO | C19: X | D19: M | E19: 2002 | F19: 59.3 | G19: 172 | H19: 20.04461871 | I19: D | K19: S | N19: -12 | O19: 206 | P19: 459 | R19: Sottopeso
A20: 18 | B20: SGRULLETTI BEATRICE | C20: X | D20: F | E20: 2002 | F20: 57.6 | G20: 160 | H20: 22.5 | I20: D | K20: S | N20: 11 | O20: 173 | P20: 550 | R20: Normopeso
A21: 19 | B21: STANICI EMANUELE | C21: X | D21: M | E21: 2002 | F21: 49.9 | G21: 168 | H21: 17.67998866 | I21: D | K21: S | N21: 3 | O21: 191 | P21: 516 | R21: Sottopeso
A22: 20 | B22: TROVATO JACOPO | C22: X | D22: M | E22: 2002 | F22: 69.2 | G22: 177 | H22: 22.08816113 | I22: D | K22: I | N22: -17 | O22: 182 | P22: 544 | R22: Normopeso
A23: 21 | B23: VALATOVICH DARYA | C23: X | D23: F | E23: 2002 | F23: 59.2 | G23: 171 | H23: 20.24554564 | I23: S | K23: N | N23: 14 | O23: 144 | P23: 600 | R23: Normopeso
A24: 22 | B24: VIVO GEYZEFF REI | C24: X | D24: F | E24: 2002 | F24: 50.4 | G24: 156 | H24: 20.71005917 | I24: D | K24: N | N24: 1 | O24: 144 | P24: 603 | R24: Normopeso
A25: 23 | B25: YUZON KIMBERLY JOI CORRAI | C25: X | D25: F | E25: 2001 | F25: 61.3 | G25: 159 | H25: 24.24745857 | K25: I | N25: 3 | O25: 191 | P25: 531 | R25: Normopeso
A26: 24 | B26: POP MALINA | C26: X | D26: F | E26: 2000 | F26: 63 | G26: 159 | H26: 24.91990032 | I26: D | K26: N | N26: 11 | O26: 163 | P26: 571 | R26: Normopeso
A27: 25 | B27: RANIACCI | Q27: Assente
A28: 26 | B28: TAREK | Q28: Assente
A29: 27 | B29: VERNIA ANDREA | C29: X | D29: M | E29: 2000 | F29: 65.6 | G29: 174 | H29: 21.66732726 | I29: D | K29: S | N29: 4 | O29: 244 | P29: 447 | R29: Normopeso
A30: 28 | B30: HASSAN MOANUL | C30: X | D30: M | F30: 71.5 | G30: 175 | H30: 23.34693878 | N30: -11 | O30: 181 | P30: 565 | R30: Normopeso
A31: 29
A32: 30
B35: Alunni : | C35: =COUNTIF(B3:B32,"<>"&"") -> 28 | I35: D | J35: S | K35: S | L35: N | M35: I
B36: Media | C36: =COUNTIF(C3:C32,"X")/C35 -> 0.7142857143 | D36: =(COUNTIFS(D3:D32,"M",C3:C32,"X")+COUNTIFS(D3:D32,"F",C3:C32,"X"))/C39 -> 1 | E36: =AVERAGE(E3:E32) -> 2001.5 | F36: =AVERAGEIFS(F3:F32,C3:C32,"X") -> 58.83333333 | G36: =AVERAGEIFS(G3:G32,C3:C32,"X") -> 164.3888889 | H36: =AVERAGEIFS(H3:H32,C3:C32,"X") ->  | I36: =(COUNTIFS(I3:I32,"D",C3:C32,"X")/C39) -> 0.85 | J36: =(COUNTIFS(I3:I32,"S",C3:C32,"X")/C39) -> 0.05 | K36: =(COUNTIFS(K3:K32,"S",C3:C32,"X")/C39) -> 0.45 | L36: =(COUNTIFS(K3:K32,"N",C3:C32,"X")/C39) -> 0.25 | M36: =(COUNTIFS(K3:K32,"I",C3:C32,"X")/C39) -> 0.25 | N36: =AVERAGEIFS(N3:N32,C3:C32,"X") -> 1.368421053 | O36: =AVERAGEIFS(O3:O32,C3:C32,"X") -> 171.5 | P36: =AVERAGEIFS(P3:P32,C3:C32,"X") -> 563
B37: Media maschi | C37: =COUNTIFS(C3:C32,"X",D3:D32,"M")/C35 -> 0.2857142857 | D37: =COUNTIFS(D3:D32,"M",C3:C32,"X")/C39 -> 0.4 | E37: =AVERAGEIFS(E3:E32,C3:C32,"X",D3:D32,"M") -> 2001.428571 | F37: =AVERAGEIFS(F3:F32,C3:C32,"X",D3:D32,"M") -> 63.12857143 | G37: =AVERAGEIFS(G3:G32,C3:C32,"X",D3:D32,"M") -> 170.7142857 | H37: =AVERAGEIFS(H3:H32,C3:C32,"X",D3:D32,"M") ->  | I37: =(COUNTIFS(I3:I32,"D",C3:C32,"X",D3:D32,"M")/COUNTIFS(D3:D32,"M",C3:C32,"X")) -> 0.875 | J37: =(COUNTIFS(I3:I32,"S",C3:C32,"X",D3:D32,"M")/COUNTIFS(D3:D32,"M",C3:C32,"X")) -> 0 | K37: =(COUNTIFS(K3:K32,"S",C3:C32,"X",D3:D32,"M")/COUNTIFS(D3:D32,"M",C3:C32,"X")) -> 0.625 | L37: =(COUNTIFS(K3:K32,"N",C3:C32,"X",D3:D32,"M")/COUNTIFS(D3:D32,"M",C3:C32,"X")) -> 0.125 | M37: =(COUNTIFS(K3:K32,"I",C3:C32,"X",D3:D32,"M")/COUNTIFS(D3:D32,"M",C3:C32,"X")) -> 0.125 | N37: =AVERAGEIFS(N3:N32,C3:C32,"X",D3:D32,"M") -> -6.142857143 | O37: =AVERAGEIFS(O3:O32,C3:C32,"X",D3:D32,"M") -> 189.5 | P37: =AVERAGEIFS(P3:P32,C3:C32,"X",D3:D32,"M") -> 534.8571429
B38: Media femmine | C38: =COUNTIFS(C4:C32,"X",D4:D32,"F")/C35 -> 0.3928571429 | D38: =COUNTIFS(D3:D32,"F",C3:C32,"X")/C39 -> 0.6 | E38: =AVERAGEIFS(E3:E32,C3:C32,"X",D3:D32,"F") -> 2001.75 | F38: =AVERAGEIFS(F3:F32,C3:C32,"X",D3:D32,"F") -> 56.1 | G38: =AVERAGEIFS(G3:G32,C3:C32,"X",D3:D32,"F") -> 160.3636364 | H38: =AVERAGEIFS(H3:H32,C3:C32,"X",D3:D32,"F") ->  | I38: =(COUNTIFS(I3:I32,"D",C3:C32,"X",D3:D32,"F")/COUNTIFS(D3:D32,"F",C3:C32,"X")) -> 0.8333333333 | J38: =(COUNTIFS(I3:I32,"S",C3:C32,"X",D3:D32,"F")/COUNTIFS(D3:D32,"F",C3:C32,"X")) -> 0.08333333333 | K38: =(COUNTIFS(K3:K32,"S",C3:C32,"X",D3:D32,"F")/COUNTIFS(D3:D32,"F",C3:C32,"X")) -> 0.3333333333 | L38: =(COUNTIFS(K3:K32,"N",C3:C32,"X",D3:D32,"F")/COUNTIFS(D3:D32,"F",C3:C32,"X")) -> 0.3333333333 | M38: =(COUNTIFS(K3:K32,"I",C3:C32,"X",D3:D32,"F")/COUNTIFS(D3:D32,"F",C3:C32,"X")) -> 0.3333333333 | N38: =AVERAGEIFS(N3:N32,C3:C32,"X",D3:D32,"F") -> 5.75 | O38: =AVERAGEIFS(O3:O32,C3:C32,"X",D3:D32,"F") -> 159.5 | P38: =AVERAGEIFS(P3:P32,C3:C32,"X",D3:D32,"F") -> 579.4166667
B39: Presenti | C39: =COUNTIF(C3:C32,"X") -> 20 | N39: Record
N40: =MAX(N3:N32) -> 18 | O40: =MAX(O3:O32) -> 244 | P40: =MIN(P3:P32) -> 447
N41: =INDEX(B3:B32,MATCH(N40,N3:N32,0),1) -> PERUGINI GAIA | O41: =INDEX(B3:B32,MATCH(O40,O3:O32,0),1) -> VERNIA ANDREA | P41: =INDEX(B3:B32,MATCH(P40,P3:P32,0),1) -> VERNIA ANDREA

Sheet 1HB
A1: MODELLO | V1: LEGENDA
A2: N° | B2: Alunno | C2: Presente | D2: Sex | E2: Anno | F2: Peso | G2: Statura | H2: BMI | I2: S/D | K2: S/N/I | N2: Flessibilità | O2: Ldf | P2: Velocità | Q2: Note | S2: Sport | V2: COLONNA | W2: FUNZIONE | Y2: SIMBOLO
A3: 1 | B3: ALLOCCA CLARA | C3: X | D3: F | E3: 2001 | F3: 43.4 | G3: 154 | H3: =IF(C3 = "X",F3/(G3/100)^2,"") -> 18.29988194 | I3: D | K3: N | N3: 9 | O3: 193 | P3: 529 | Q3: =IF(AND(C3<>"X",B3<>""),"Assente",IF(AND(B3="",C3="X"),"??","")) ->  | R3: =IF(AND(C3="X",D3="M"),IF(H3<>"",IF(H3<20.7,"Sottopeso",IF(H3>27.8,"Sovrappeso","Normopeso")),""),IF(AND(C3="X",D3="F"),IF(H3<>"",IF(H3<19.1,"Sottopeso",IF(H3>27.3,"Sovrappeso","Normopeso")),""),"")) -> Sottopeso | V3: I-J | W3: MANCINO O DESTRO | Y3: S/D
A4: 2 | B4: AMORI MARCELLO | C4: X | D4: M | E4: 2002 | F4: 53.9 | G4: 172 | H4: =IF(C4 = "X",F4/(G4/100)^2,"") -> 18.21930773 | I4: D | K4: I | N4: 0 | O4: 193 | P4: 490 | Q4: =IF(AND(C4<>"X",B4<>""),"Assente",IF(AND(B4="",C4="X"),"??","")) ->  | R4: =IF(AND(C4="X",D4="M"),IF(H4<>"",IF(H4<20.7,"Sottopeso",IF(H4>27.8,"Sovrappeso","Normopeso")),""),IF(AND(C4="X",D4="F"),IF(H4<>"",IF(H4<19.1,"Sottopeso",IF(H4>27.3,"Sovrappeso","Normopeso")),""),"")) -> Sottopeso | V4: K-L-M | W4: SPORTIVO - NON SPORTIVO - INTERMEDIO | Y4: S/N/I
A5: 3 | B5: BALBOA JULLETTA | D5: F | E5: 2001 | G5: 156 | I5: S | K5: N | N5: 5 | O5: 142 | P5: 597 | Q5: Assente | V5: O | W5: SALTO IN LUNGO DA FERMO | Y5: NUMERICO
A6: 4 | B6: BIGETTI GIULIA | D6: F | E6: 2003 | Q6: Assente | V6: SPORT | W6: ALUNNO SELEZIONATO PER SQUADRA | Y6: X
A7: 5 | B7: CASINI NICOLO' | C7: X | D7: M | E7: 2002 | F7: 71.5 | G7: 172 | H7: 24.16846944 | I7: D | K7: I | N7: 2 | O7: 202 | P7: 471 | R7: Normopeso
A8: 6 | B8: CHAVEZ OBILITAS | D8: F | E8: 2001 | Q8: Assente | V8: TUTTI I DATI VANNO INSERITI IN FORMATO CAPSLOCK (MAIUSCOLO)
A9: 7 | B9: CHIARADONNA LUDOVICA | C9: X | D9: F | E9: 2002 | F9: 63.6 | G9: 177 | H9: 20.30067988 | I9: D | K9: N | N9: 1 | O9: 150 | P9: 553 | R9: Normopeso
A10: 8 | B10: DE VINCENTI SARA | D10: F | E10: 2001 | Q10: Assente
A11: 9 | B11: DI IACOVO UMBERTO | D11: M | E11: 2002 | Q11: Assente
A12: 10 | B12: EBAID MIRA | C12: X | D12: F | E12: 2002 | F12: 71.1 | G12: 158 | H12: 28.48101266 | I12: S | K12: N | N12: 6 | O12: 110 | P12: 628 | R12: Sovrappeso
A13: 11 | B13: FURCINTI MARIA LAURA | D13: F | E13: 2002 | Q13: Assente
A14: 12 | B14: GRANDE CHRISTIAN | D14: M | E14: 1998 | Q14: Assente
A15: 13 | B15: GUANZON MAHR | C15: X | D15: F | E15: 2000 | F15: 53.3 | G15: 150 | H15: 23.68888889 | I15: D | K15: N | N15: 3 | O15: 160 | P15: 616 | R15: Normopeso
A16: 14 | B16: LEUZZI MARCANTONIO | C16: X | D16: M | E16: 2002 | F16: 61.4 | G16: 167 | H16: 22.01584854 | I16: D | K16: I | N16: -8 | O16: 182 | P16: 506 | R16: Normopeso
A17: 15 | B17: MUCCI ALESSIO | D17: M | E17: 2000 | Q17: Assente
A18: 16 | B18: MARTINEZ CHAMUL DAYANA | C18: X | D18: F | E18: 2000 | F18: 48.4 | G18: 158 | H18: 19.3879186 | I18: D | K18: S | N18: 8 | O18: 159 | P18: 568 | R18: Normopeso
A19: 17 | B19: OLARASU RAMONA | C19: X | D19: F | E19: 2001 | F19: 53 | G19: 157 | H19: 21.50188649 | I19: D | K19: N | N19: 0 | O19: 141 | P19: 609 | R19: Normopeso
A20: 18 | B20: PACIONI ELEONORA | C20: X | D20: F | E20: 2002 | F20: 55.3 | G20: 172 | H20: 18.69253651 | I20: D | K20: S | N20: -4 | O20: 177 | P20: 481 | R20: Sottopeso
A21: 19 | B21: PAOLUCCI ALESSIA | C21: X | D21: F | E21: 2002 | G21: 159 | H21: 0 | I21: S | K21: N | N21: -3 | R21: Sottopeso
A22: 20 | B22: ROSSI EDOARDO FRANCESCO | C22: X | D22: M | E22: 2002 | F22: 73.9 | G22: 176 | H22: 23.85717975 | I22: D | K22: I | N22: 0 | O22: 176 | P22: 503 | R22: Normopeso
A23: 21 | B23: SOCA THOMAS VALERINE | D23: M | E23: 1999 | Q23: Assente
A24: 22 | B24: SOFFIATINI CLAUDIO | C24: X | D24: M | E24: 2001 | F24: 96.3 | G24: 184 | H24: 28.44399811 | I24: D | K24: N | N24: -9 | R24: Sovrappeso
A25: 23 | B25: SPIZZICHINI DAVIDE | C25: X | D25: M | E25: 2002 | F25: 56.2 | G25: 164 | H25: 20.89530042 | I25: D | K25: S | N25: 5 | O25: 184 | P25: 483 | R25: Normopeso
A26: 24 | B26: YOWAKIM GASMAN FAHMY | C26: X | D26: F | E26: 2002 | F26: 56.7 | G26: 165 | H26: 20.82644628 | I26: D | K26: N | N26: 9 | O26: 140 | P26: 580 | R26: Normopeso
A27: 25 | B27: CARIN GIANCARLO | C27: X | D27: M | F27: 59 | G27: 163 | H27: 22.20633069 | I27: D | K27: S | N27: 10 | O27: 225 | P27: 481 | R27: Normopeso
A28: 26
A29: 27
A30: 28
A31: 29
A32: 30
B35: Alunni : | C35: =COUNTIF(B3:B32,"<>"&"") -> 26 | I35: D | J35: S | K35: S | L35: N | M35: I
B36: Media | C36: =COUNTIF(C3:C32,"X")/C35 -> 0.6153846154 | D36: =(COUNTIFS(D3:D32,"M",C3:C32,"X")+COUNTIFS(D3:D32,"F",C3:C32,"X"))/C39 -> 1 | E36: =AVERAGE(E3:E32) -> 2001.25 | F36: =AVERAGEIFS(F3:F32,C3:C32,"X") -> 61.13333333 | G36: =AVERAGEIFS(G3:G32,C3:C32,"X") -> 165.5 | H36: =AVERAGEIFS(H3:H32,C3:C32,"X") -> 20.68660537 | I36: =(COUNTIFS(I3:I32,"D",C3:C32,"X")/C39) -> 0.875 | J36: =(COUNTIFS(I3:I32,"S",C3:C32,"X")/C39) -> 0.125 | K36: =(COUNTIFS(K3:K32,"S",C3:C32,"X")/C39) -> 0.25 | L36: =(COUNTIFS(K3:K32,"N",C3:C32,"X")/C39) -> 0.5 | M36: =(COUNTIFS(K3:K32,"I",C3:C32,"X")/C39) -> 0.25 | N36: =AVERAGEIFS(N3:N32,C3:C32,"X") -> 1.8125 | O36: =AVERAGEIFS(O3:O32,C3:C32,"X") -> 170.8571429 | P36: =AVERAGEIFS(P3:P32,C3:C32,"X") -> 535.5714286
B37: Media maschi | C37: =COUNTIFS(C3:C32,"X",D3:D32,"M")/C35 -> 0.2692307692 | D37: =COUNTIFS(D3:D32,"M",C3:C32,"X")/C39 -> 0.4375 | E37: =AVERAGEIFS(E3:E32,C3:C32,"X",D3:D32,"M") -> 2001.833333 | F37: =AVERAGEIFS(F3:F32,C3:C32,"X",D3:D32,"M") -> 67.45714286 | G37: =AVERAGEIFS(G3:G32,C3:C32,"X",D3:D32,"M") -> 171.1428571 | H37: =AVERAGEIFS(H3:H32,C3:C32,"X",D3:D32,"M") -> 22.82949067 | I37: =(COUNTIFS(I3:I32,"D",C3:C32,"X",D3:D32,"M")/COUNTIFS(D3:D32,"M",C3:C32,"X")) -> 1 | J37: =(COUNTIFS(I3:I32,"S",C3:C32,"X",D3:D32,"M")/COUNTIFS(D3:D32,"M",C3:C32,"X")) -> 0 | K37: =(COUNTIFS(K3:K32,"S",C3:C32,"X",D3:D32,"M")/COUNTIFS(D3:D32,"M",C3:C32,"X")) -> 0.2857142857 | L37: =(COUNTIFS(K3:K32,"N",C3:C32,"X",D3:D32,"M")/COUNTIFS(D3:D32,"M",C3:C32,"X")) -> 0.1428571429 | M37: =(COUNTIFS(K3:K32,"I",C3:C32,"X",D3:D32,"M")/COUNTIFS(D3:D32,"M",C3:C32,"X")) -> 0.5714285714 | N37: =AVERAGEIFS(N3:N32,C3:C32,"X",D3:D32,"M") -> 0 | O37: =AVERAGEIFS(O3:O32,C3:C32,"X",D3:D32,"M") -> 193.6666667 | P37: =AVERAGEIFS(P3:P32,C3:C32,"X",D3:D32,"M") -> 489
B38: Media femmine | C38: =COUNTIFS(C4:C32,"X",D4:D32,"F")/C35 -> 0.3076923077 | D38: =COUNTIFS(D3:D32,"F",C3:C32,"X")/C39 -> 0.5625 | E38: =AVERAGEIFS(E3:E32,C3:C32,"X",D3:D32,"F") -> 2001.333333 | F38: =AVERAGEIFS(F3:F32,C3:C32,"X",D3:D32,"F") -> 55.6 | G38: =AVERAGEIFS(G3:G32,C3:C32,"X",D3:D32,"F") -> 161.1111111 | H38: =AVERAGEIFS(H3:H32,C3:C32,"X",D3:D32,"F") -> 19.0199168 | I38: =(COUNTIFS(I3:I32,"D",C3:C32,"X",D3:D32,"F")/COUNTIFS(D3:D32,"F",C3:C32,"X")) -> 0.7777777778 | J38: =(COUNTIFS(I3:I32,"S",C3:C32,"X",D3:D32,"F")/COUNTIFS(D3:D32,"F",C3:C32,"X")) -> 0.2222222222 | K38: =(COUNTIFS(K3:K32,"S",C3:C32,"X",D3:D32,"F")/COUNTIFS(D3:D32,"F",C3:C32,"X")) -> 0.2222222222 | L38: =(COUNTIFS(K3:K32,"N",C3:C32,"X",D3:D32,"F")/COUNTIFS(D3:D32,"F",C3:C32,"X")) -> 0.7777777778 | M38: =(COUNTIFS(K3:K32,"I",C3:C32,"X",D3:D32,"F")/COUNTIFS(D3:D32,"F",C3:C32,"X")) -> 0 | N38: =AVERAGEIFS(N3:N32,C3:C32,"X",D3:D32,"F") -> 3.222222222 | O38: =AVERAGEIFS(O3:O32,C3:C32,"X",D3:D32,"F") -> 153.75 | P38: =AVERAGEIFS(P3:P32,C3:C32,"X",D3:D32,"F") -> 570.5
B39: Presenti | C39: =COUNTIF(C3:C32,"X") -> 16 | N39: Record
N40: =MAX(N3:N32) -> 10 | O40: =MAX(O3:O32) -> 225 | P40: =MIN(P3:P32) -> 471
N41: =INDEX(B3:B32,MATCH(N40,N3:N32,0),1) -> CARIN GIANCARLO | O41: =INDEX(B3:B32,MATCH(O40,O3:O32,0),1) -> CARIN GIANCARLO | P41: =INDEX(B3:B32,MATCH(P40,P3:P32,0),1) -> CASINI NICOLO'

Sheet MODELLO
A1: MODELLO | V1: LEGENDA
A2: N° | B2: Alunno | C2: Presente | D2: Sex | E2: Anno | F2: Peso | G2: Statura | H2: BMI | I2: S/D | K2: S/N/I | N2: Flessibilità | O2: Ldf | P2: Velocità | Q2: Note | S2: Sport | V2: COLONNA | W2: FUNZIONE | Y2: SIMBOLO
A3: 1 | H3: =IF(C3 = "X",F3/(G3/100)^2,"") ->  | Q3: =IF(AND(C3<>"X",B3<>""),"Assente",IF(AND(B3="",C3="X"),"??","")) ->  | R3: =IF(AND(C3="X",D3="M"),IF(H3<>"",IF(H3<20.7,"Sottopeso",IF(H3>27.8,"Sovrappeso","Normopeso")),""),IF(AND(C3="X",D3="F"),IF(H3<>"",IF(H3<19.1,"Sottopeso",IF(H3>27.3,"Sovrappeso","Normopeso")),""),"")) ->  | V3: I-J | W3: MANCINO O DESTRO | Y3: S/D
A4: 2 | H4: =IF(C4 = "X",F4/(G4/100)^2,"") ->  | Q4: =IF(AND(C4<>"X",B4<>""),"Assente",IF(AND(B4="",C4="X"),"??","")) ->  | R4: =IF(AND(C4="X",D4="M"),IF(H4<>"",IF(H4<20.7,"Sottopeso",IF(H4>27.8,"Sovrappeso","Normopeso")),""),IF(AND(C4="X",D4="F"),IF(H4<>"",IF(H4<19.1,"Sottopeso",IF(H4>27.3,"Sovrappeso","Normopeso")),""),"")) ->  | V4: K-L-M | W4: SPORTIVO - NON SPORTIVO - INTERMEDIO | Y4: S/N/I
A5: 3 | V5: O | W5: SALTO IN LUNGO DA FERMO | Y5: NUMERICO
A6: 4 | V6: SPORT | W6: ALUNNO SELEZIONATO PER SQUADRA | Y6: X
A7: 5
A8: 6 | V8: TUTTI I DATI VANNO INSERITI IN FORMATO CAPSLOCK (MAIUSCOLO)
A9: 7
A10: 8
A11: 9
A12: 10
A13: 11
A14: 12
A15: 13
A16: 14
A17: 15
A18: 16
A19: 17
A20: 18
A21: 19
A22: 20
A23: 21
A24: 22
A25: 23
A26: 24
A27: 25
A28: 26
A29: 27
A30: 28
A31: 29
A32: 30
B35: Alunni : | C35: =COUNTIF(B3:B32,"<>"&"") -> 0 | I35: D | J35: S | K35: S | L35: N | M35: I
B36: Media | C36: =COUNTIF(C3:C32,"X")/C35 ->  | D36: =(COUNTIFS(D3:D32,"M",C3:C32,"X")+COUNTIFS(D3:D32,"F",C3:C32,"X"))/C39 ->  | E36: =AVERAGE(E3:E32) ->  | F36: =AVERAGEIFS(F3:F32,C3:C32,"X") ->  | G36: =AVERAGEIFS(G3:G32,C3:C32,"X") ->  | H36: =AVERAGEIFS(H3:H32,C3:C32,"X") ->  | I36: =(COUNTIFS(I3:I32,"D",C3:C32,"X")/C39) ->  | J36: =(COUNTIFS(I3:I32,"S",C3:C32,"X")/C39) ->  | K36: =(COUNTIFS(K3:K32,"S",C3:C32,"X")/C39) ->  | L36: =(COUNTIFS(K3:K32,"N",C3:C32,"X")/C39) ->  | M36: =(COUNTIFS(K3:K32,"I",C3:C32,"X")/C39) ->  | N36: =AVERAGEIFS(N3:N32,C3:C32,"X") ->  | O36: =AVERAGEIFS(O3:O32,C3:C32,"X") ->  | P36: =AVERAGEIFS(P3:P32,C3:C32,"X") -> 
B37: Media maschi | C37: =COUNTIFS(C3:C32,"X",D3:D32,"M")/C35 ->  | D37: =COUNTIFS(D3:D32,"M",C3:C32,"X")/C39 ->  | E37: =AVERAGEIFS(E3:E32,C3:C32,"X",D3:D32,"M") ->  | F37: =AVERAGEIFS(F3:F32,C3:C32,"X",D3:D32,"M") ->  | G37: =AVERAGEIFS(G3:G32,C3:C32,"X",D3:D32,"M") ->  | H37: =AVERAGEIFS(H3:H32,C3:C32,"X",D3:D32,"M") ->  | I37: =(COUNTIFS(I3:I32,"D",C3:C32,"X",D3:D32,"M")/COUNTIFS(D3:D32,"M",C3:C32,"X")) ->  | J37: =(COUNTIFS(I3:I32,"S",C3:C32,"X",D3:D32,"M")/COUNTIFS(D3:D32,"M",C3:C32,"X")) ->  | K37: =(COUNTIFS(K3:K32,"S",C3:C32,"X",D3:D32,"M")/COUNTIFS(D3:D32,"M",C3:C32,"X")) ->  | L37: =(COUNTIFS(K3:K32,"N",C3:C32,"X",D3:D32,"M")/COUNTIFS(D3:D32,"M",C3:C32,"X")) ->  | M37: =(COUNTIFS(K3:K32,"I",C3:C32,"X",D3:D32,"M")/COUNTIFS(D3:D32,"M",C3:C32,"X")) ->  | N37: =AVERAGEIFS(N3:N32,C3:C32,"X",D3:D32,"M") ->  | O37: =AVERAGEIFS(O3:O32,C3:C32,"X",D3:D32,"M") ->  | P37: =AVERAGEIFS(P3:P32,C3:C32,"X",D3:D32,"M") -> 
B38: Media femmine | C38: =COUNTIFS(C4:C32,"X",D4:D32,"F")/C35 ->  | D38: =COUNTIFS(D3:D32,"F",C3:C32,"X")/C39 ->  | E38: =AVERAGEIFS(E3:E32,C3:C32,"X",D3:D32,"F") ->  | F38: =AVERAGEIFS(F3:F32,C3:C32,"X",D3:D32,"F") ->  | G38: =AVERAGEIFS(G3:G32,C3:C32,"X",D3:D32,"F") ->  | H38: =AVERAGEIFS(H3:H32,C3:C32,"X",D3:D32,"F") ->  | I38: =(COUNTIFS(I3:I32,"D",C3:C32,"X",D3:D32,"F")/COUNTIFS(D3:D32,"F",C3:C32,"X")) ->  | J38: =(COUNTIFS(I3:I32,"S",C3:C32,"X",D3:D32,"F")/COUNTIFS(D3:D32,"F",C3:C32,"X")) ->  | K38: =(COUNTIFS(K3:K32,"S",C3:C32,"X",D3:D32,"F")/COUNTIFS(D3:D32,"F",C3:C32,"X")) ->  | L38: =(COUNTIFS(K3:K32,"N",C3:C32,"X",D3:D32,"F")/COUNTIFS(D3:D32,"F",C3:C32,"X")) ->  | M38: =(COUNTIFS(K3:K32,"I",C3:C32,"X",D3:D32,"F")/COUNTIFS(D3:D32,"F",C3:C32,"X")) ->  | N38: =AVERAGEIFS(N3:N32,C3:C32,"X",D3:D32,"F") ->  | O38: =AVERAGEIFS(O3:O32,C3:C32,"X",D3:D32,"F") ->  | P38: =AVERAGEIFS(P3:P32,C3:C32,"X",D3:D32,"F") -> 
B39: Presenti | C39: =COUNTIF(C3:C32,"X") -> 0 | N39: Record
N40: =MAX(N3:N32) -> 0 | O40: =MAX(O3:O32) -> 0 | P40: =MIN(P3:P32) -> 0
N41: =INDEX(B3:B32,MATCH(N40,N3:N32,0),1) ->  | O41: =INDEX(B3:B32,MATCH(O40,O3:O32,0),1) ->  | P41: =INDEX(B3:B32,MATCH(P40,P3:P32,0),1) -> 
